{"text_format":"1","workbook":"xlsx","n_sheets":12,"sheets":["0. Introductory notes","1. Installation","2. Points of release","3. Foundries","4. Water-chemic-oil consumption","5. Energy consumption ","6. Emissions to air","7. Emissions to water","8. Noise","9. Residues generation","Endnotes","DropDownMenus"],"not_rendered":{"charts":0,"images":3,"macros":1,"external_links":1,"defined_names":197,"comments":0,"pivot_tables":0},"unopened":[],"bounds":{"document_bytes":16777216,"sheet_cells":100000,"rows_first":2000,"rows_last":500,"rows_between":2000,"halvings":0,"cell_chars":16384,"cell_head_chars":4096},"cells_cut":0,"cells_raw":0,"read":"whole","date_system":"1900"}

{"sheet":"0. Introductory notes","index":0,"n_rows":108,"n_cols":2,"rows_kept":108,"cut":false,"hidden":false,"merged":[[79,1,79,3],[93,1,93,3],[97,1,97,3],[96,1,96,3],[85,1,85,3],[87,1,87,3],[89,1,89,3],[92,1,92,3],[86,1,86,3],[82,1,82,3],[107,1,107,3],[99,1,99,3],[100,1,100,3],[102,1,102,3],[103,1,103,3],[104,1,104,3],[21,1,21,3],[69,2,69,3],[68,2,68,3],[67,2,67,3],[66,1,66,3],[44,2,44,3],[45,2,45,3],[46,2,46,3],[47,2,47,3],[48,2,48,3],[49,2,49,3],[53,1,53,3],[37,2,37,3],[43,1,43,3],[76,1,76,3],[74,1,74,3],[72,2,72,3],[16,1,16,3],[19,1,19,3],[17,1,17,3],[22,1,22,3],[70,2,70,3],[52,1,52,3],[59,2,59,3],[60,2,60,3],[61,2,61,3],[62,2,62,3],[65,2,65,3],[63,2,63,3],[64,2,64,3],[18,1,18,3],[71,2,71,3],[58,1,58,3],[9,1,9,3],[10,1,10,3],[11,1,11,3],[12,1,12,3],[35,1,35,3],[36,2,36,3],[38,2,38,3],[39,2,39,3],[40,2,40,3],[41,2,41,3],[14,1,14,3],[15,1,15,3],[50,2,50,3]]}
[]
[]
[]
[]
[]
[]
[]
[]
[]
[null,"Questionnaire for collecting plant-specific data"]
[null,"for the review of the BAT Reference Document"]
[null,"for the Smitheries and Foundries Industry (SF BREF)"]
[null,"FOUNDRIES_"]
[]
[null,"Please read the SF BREF questionnaire User's manual which accompanies this questionnaire and consult the EndNotes sheet of this questionnaire if in doubt during filling in."]
[null,"This questionnaire is designed for the collection of data for emissions to air and water, noise emissions, consumption of materials, water, energy, and corresponding contextual information about processes, techniques and monitoring from foundry installations falling under the scope of the SF BREF."]
[]
[null,"The questionnaire consists of the following set of sheets:"]
[null,"0 - - - - - - - - - - - - - Introductory notes \n1 - - - - - - - - - - - - - Installation\n2 - - - - - - - - - - - - - Points of release\n3 - - - - - - - - - - - - - Foundries\n4 - - - - - - - - - - - - - Water - chemicals - lubricating oils consumption\n5. - - - - - - - - - - - - -Energy consumption \n6  - - - - - - - - - - - - -Emissions to air \n7 - - - - - - - - - - - - - Emissions to water\n8. -  - - - - - - - - - - - Noise emissions \n9 - - - - - - - - - - - - - Residues generation \n10 - - - - - - - - - - - - BAT candidate (as a stand-alone workbook and word document)\n"]
[null,"Not all sheets of the questionnaire are initially visible.\nThe relevant sheets will appear when data are entered in the appropriate cells.\nMacro options of Excel must be enabled. This template was designed with Excel 2010."]
[]
[null,"GENERAL WARNINGS:"]
[null,"To make this questionnaire as user-friendly as possible, many actions have been automated using Excel's programming functionalities (i.e. macros). These functionalities may only work within a precisely defined structure, which is that of the original questionnaire template provided by the European IPPC Bureau."]
[null,"Therefore, the original structure of this Excel template must not be changed under any circumstances."]
[null," In particular, do not:"]
[null,"- fill in this questionnaire starting from any version other than the original blank template;"]
[null,"- insert, delete, hide, unhide, modify the order or modify the names of a worksheet manually;"]
[null,"- insert, delete, hide, unhide or modify a line or a yellow cell of a worksheet manually;"]
[null,"- modify the content, the format or any other property of a yellow cell;"]
[null,"- insert a value or write text outside a white cell;"]
[null,"- modify the format or any property, other than the content, of a white cell."]
[]
[null,"You may:"]
[null,"- enter information in the white or light red cells using the required format  (i.e. number, text or date)."]
[]
[null,"Contact person, i.e. person completing the questionnaire: (will only be contacted if further information or clarification is necessary)"]
[null,"Company name: "]
[null,"Name: "]
[null,"Job title:"]
[null,"E-mail:"]
[null,"Telephone:"]
[null,"Comments: "]
[]
[null,"To be filled in by the competent authority checking the quality of the questionnaire: "]
[null,"Country ▼"]
[null,"Date of quality check:"]
[null,"Organisation:"]
[null,"First name and surname:"]
[null,"Job title:"]
[null,"E-mail:"]
[null,"Telephone:"]
[]
[null,"Only to be used by MS competent authorities"]
[null,"Once the questionnaire has been checked by the MS competent authorities, this button may be used to automatically remove all information entered in the light red cells and save a non-confidential version of the questionnaire."]
[]
[]
[]
[]
[null,"To be filled in by the TWG member(s) from industry giving assistance with completing the questionnaire: "]
[null,"Industrial organisation:"]
[null,"Date of completion:"]
[null,"First name and surname:"]
[null,"Job title:"]
[null,"E-mail:"]
[null,"Telephone:"]
[]
[null,"To be filled in by the TWG member(s) from environmental NGOs giving assistance with completing the questionnaire: "]
[null,"Environmental NGO:"]
[null,"Date of completion:"]
[null,"First name and surname:"]
[null,"Job title:"]
[null,"E-mail:"]
[null,"Telephone:"]
[]
[null,"In the event that you have doubts or difficulties when completing this questionnaire, please do not hesitate to contact the European IPPC Bureau,  \n(e-mail: JRC-B5-EIPPCB-SF@ec.europa.eu) \n\nTel. Frauke SCHORCHT: +34 9544 88759, Eric ARIES: +34 9544 88428, George CHRONOPOULOS: +34 9544 88467"]
[]
[null,"The filled-in questionnaire, along with additionnal attached documents, should be returned to the relevant contact person of your Member State \n(i.e. the person who sent the questionnaire to the operator). "]
[]
[]
[null,"INFORMATION ABOUT THIS QUESTIONNAIRE"]
[]
[null,"Industrial Emissions Directive and BREFs"]
[null,"The  Industrial Emissions Directive (IED), 2010/75/EU, of 24 November 2010 replaced the Integrated Pollution Prevention and Control (IPPC) Directive (2008/1/EC) and related legislation on industrial emissions. Under the IPPC and now the IED, a Best Available Techniques (BAT) Reference document (BREF) is the vehicle through which BAT (and emerging techniques) are determined in a transparent manner, based on sound techno-economic information. The key elements of BREFs (i.e. 'BAT conclusions') are adopted through a Committee procedure and are the reference for setting permit conditions of installations covered by the IED. Each BREF is the outcome of a three- to four-year process involving numerous experts, representing industry, Member States, environmental NGOs and services of the Commission."]
[]
[null,"Information exchange under the IED for the review of the Smitheries and Foundries Indrustry BREF"]
[null,"The European IPPC Bureau (EIPPCB) is part of the Circular Economy and Industrial Leadership Unit of Directorate B - Growth and Innovation. Directorate B is one of the scientific directorates of the European Commission's Joint Research Centre (JRC). It organises the exchange of information between Member States, the representatives of the industries concerned, environmental NGOs and the Commission, on the best available techniques (BAT) under Article 13(1) of the IED. The objective of the information exchange exercise is to draw up and review BREFs. All the information in the context of the drawing up of this BREF is exchanged via an electronic BAT information system (BATIS), except for confidential and sensitive information. Only registered members and JRC staff are allowed to submit and view information on BATIS. The BATIS privacy statement can be consulted on the EIPPCB website: \nhttp://eippcb.jrc.ec.europa.eu/batis/downloadPdf?name=Privacy_Statement_BATIS__DPO-1586.pdf "]
[null,"The personal data requested about the persons who filled in or checked the questionnaire will only be used so that they can be contacted if questions arise when the EIPPCB analyses the data. Should you have any queries concerning the processing of your personal data, please address them to the secretariat of the Circular Economy and Industrial Leadership Unit: JRC-B5-SECRETARIAT@ec.europa.eu"]
[null,"The work on the review of the SF BREF officially started with the reactivation in July 2018 of the Technical Working Group (TWG) formed especially for this purpose. The Kick-off Meeting (KoM) of the TWG was held in Seville from 17 to 20 September 2019 and the KoM report is available on the EIPPCB website at: "]
[null,"https://eippcb.jrc.ec.europa.eu/reference"]
[null,"The primary purpose of this questionnaire is to collect data and contextual information to derive the Best Available Technique (BAT) conclusions for the SF BREF, regarding the emissions to air and to water from the SF installations within the scope of the BREF, the consumption of materials, water and energy of these installations and the generation of waste water. Moreover, the data collected will be used to draw up the 'Current emission and consumption levels' and 'Techniques to consider in the determination of BAT' chapters of the SF BREF. "]
[]
[null,"Purpose of this questionnaire"]
[null,"The purpose of this questionnaire is to obtain plant-specific information and data regarding the environmental performance of existing installations in the scope of the SF BREF. This questionnaire is one of the sources of information for the SF BREF drawing-up process.\nMember States are responsible, with the support of the industrial organisations and environmental NGOs, for collecting and checking the filled-in questionnaires so that the EIPPCB can have them all returned by the strict deadline of 15/09/2020"]
[null,"The quality of the data provided is fundamental for deriving sound BAT conclusions. Therefore this questionnaire should be filled in very carefully and as exhaustively as possible. "]
[]
[null,"What type of information is requested"]
[null,"Please submit the information that you have available and/or that you are able to collect. Please provide information and descriptions and plant-specific and process-specific data on emissions and consumption. You may attach additional supporting documents to provide other relevant information together with this questionnaire."]
[]
[null,"Handling confidential business information (CBI) "]
[null,"The exchange of information under the IED should not lead to the breaching of either EU or national competition laws or other laws designed to protect legitimate economic interests. The information submitted by filling in this questionnaire will be used solely for the purpose of the drawing up of the SF BREF. This questionnaire has been designed to focus on emission data that, in principle, should not be confidential.\nCBI information that needs to be collected, it  is to be reported in the light red cells."]
[null,"The operator will:\n• send the full questionnaire (containing CBI if applicable) to the Member State (MS) for checking;\n• send the process flow diagram(s) showing the waste gas treatment systems and any other supporting documents to the MS; the process flow diagrams and other supporting documents should not contain any CBI.\n\nThe Member State (MS) representative will:\n• check the quality, completeness and consistency of the information in the full questionnaire;\n• create and save a non-confidential version of the questionnaire, using the button provided above;\n• post the non-confidential version of the questionnaire, and any other supporting documents onto BATIS, so that they will be shared with the whole TWG;\n• send the full version of the questionnaire (containing CBI) to the EIPPCB by email (preferably using encryption).\n\n\n"]
[null,"The EIPPCB will:"]
[null,"• anonymise the full questionnaires (containing CBI information) by allocating a CBI reference number to each installation; this reference will be used to identify the installation whenever CBI is used as part of the data assessment and analysis;"]
[null,"• store the full questionnaires, (containing CBI information) and the reference number information, in access-restricted and password-protected electronic folders; the information will only be used by the Head of the EIPPCB and the SF BREF authors for the purposes of producing the SF BREF;"]
[null,"• send each MS a list of all the installation names and CBI reference numbers for the installations in that MS; this will allow the MS to check on the performance of their installations whenever anonymised information is used by the EIPPCB."]
[]
[null,"The MS will:"]
[null,"• inform each installation of their CBI reference number; this will allow each installation to identify their data whenever anonymised information is used by the EIPPCB."]

{"sheet":"1. Installation","index":1,"n_rows":82,"n_cols":9,"rows_kept":82,"cut":false,"hidden":false,"merged":[[30,8,30,9],[34,6,34,9],[35,6,35,9],[36,6,36,9],[3,4,3,9],[5,4,5,9],[7,4,7,5],[9,4,9,9],[32,3,32,4],[28,8,28,9],[15,3,15,4],[26,8,26,9],[27,8,27,9],[29,8,29,9],[32,6,32,9],[35,3,35,4],[36,3,36,4],[8,4,8,9],[57,5,57,9],[51,3,51,9],[52,4,52,9],[43,5,43,9],[44,5,44,9],[37,3,37,4],[38,3,38,4],[40,3,40,9],[41,5,41,9],[47,4,47,9],[33,3,33,4],[34,3,34,4],[45,5,45,9],[33,6,33,9],[42,5,42,9],[37,6,37,9],[38,6,38,9],[78,4,78,9],[56,5,56,9],[54,5,54,9],[55,5,55,9],[76,4,76,9],[77,4,77,9],[58,5,58,9],[59,5,59,9],[60,5,60,9],[79,4,79,9],[82,3,82,9],[64,8,64,9],[81,3,81,9],[61,5,61,9],[62,5,62,9],[73,4,73,9],[74,4,74,9],[75,4,75,9],[66,6,66,9],[67,6,67,9],[68,6,68,9],[69,6,69,9],[22,6,22,9],[15,7,15,9],[16,7,16,9],[17,7,17,9],[18,7,18,9],[19,7,19,9],[20,7,20,9],[21,7,21,9]]}
[]
[null,"1",null,"Identification of the installation"]
[]
[null,"1.1",null,"Name of the installation/plant:"]
[]
[null,"1.2",null,"Name of the company/operator:"]
[]
[null,null,null,"Country ▼"]
[null,null,null,"Region:"]
[null,null,null,"City:"]
[]
[]
[]
[]
[]
[null,"1.3",null,"IED activity indicated in the permit▼",null,"Production capacity","Unit▼","Any additional information on production capacity"]
[null,null,null,"IED  Annex I point 2.4 (ferrous metal foundries)"]
[null,null,null,"IED  Annex I point 2.5 (b) (processing of non-ferrous metals - melting). Please indicate the exact metal type(s) below"]
[null,null,null,"Metal type"]
[null,null,null,"Metal type"]
[null,null,null,"Metal type"]
[null,null,null,"Metal type"]
[null,null,null,"IED Annex I point 6.11"]
[]
[null,null,null,null,null,null,null,"Number of EMAS/ISO certifications of the plant"]
[]
[null,null,null,"E-PRTR code of the plant",null,null,null,"EMAS or ISO certification of the plant  ▼","Additional information on certification"]
[null,null,null,"Additional information ",null,null,null,"EMAS"]
[]
[]
[]
[]
[null,"1.4",null,"1.4.1. Other IED activity(ies) carried out at the installation ▼",null,"Is this other IED activity the main activity in place? (Y/N) ▼","Comments / additional information "]
[]
[]
[]
[]
[]
[]
[]
[null,null,null,"1.4.2 Other non-IED activities  taking place on site that have an impact on emissions and consumption (directly associated activities - DAA)"]
[null,null,null,"Activity","Impact on emissions and consumption ▼","Additional information"]
[]
[]
[]
[]
[]
[null,"1.5",null,"Hyperlink to the permit or permit copy"]
[]
[null,"1.6",null,"Start of operation (year):"]
[]
[null,"1.7",null,"To give a better understanding of the different processes sequences carried out as well as the order and interactions of those processes, please provide a flow diagram/layout presenting this information. Please attach the flow diagram  (as an annex to the questionnaire); report the file name below."]
[null,null,null,"Name of attached diagram: "]
[]
[null,"1.8",null,"Latest retrofits of equipment having a major effect on the environmental performance of the above activities","Year","Additional information - aim of the changes (e.g. implementation of new techniques, retrofit of equipment)"]
[]
[]
[]
[]
[]
[]
[]
[]
[]
[null,"1.9",null,"Operation regime"]
[]
[null,null,null,"Reference year ▼","Operating hours of the foundry per year","Shifts per day","Additional information"]
[]
[]
[]
[]
[null,"1.10",null,"List of attached documents"]
[]
[null,null,null,"Title / filename","Description"]
[]
[]
[]
[]
[]
[]
[]
[null,null,null,"Additional information - Comments"]

{"sheet":"2. Points of release","index":2,"n_rows":67,"n_cols":8,"rows_kept":67,"cut":false,"hidden":false,"merged":[[2,2,2,3],[3,4,3,9],[4,4,4,9],[42,2,42,4],[65,3,65,4],[9,2,9,4],[6,5,6,6],[5,7,5,8],[6,7,6,8],[5,2,5,3],[6,2,6,3],[5,5,5,6],[66,3,66,4],[32,3,32,4],[33,3,33,4],[38,2,38,3],[39,2,39,3],[36,4,36,9],[37,4,37,9],[38,7,38,8],[39,7,39,8],[38,5,38,6],[39,5,39,6]]}
[null,"2","Emissions to air and to water - Points of release"]
[]
[null,"2.1","Emissions to air - Points of release"]
[null,null,null,null,"Please provide a flow diagram showing the waste gas treatment systems and the processes associated to each one"]
[null,null,"Total number of monitored points of release"]
[null,null,"Emissions to air (PA)",null,null,"Name of attached diagram",null,"Document description"]
[null,null,0]
[]
[null,null,"Please provide the names of the points of release:"]
[null,null,"Emissions to air"]
[null,null,"Monitored point of release","Name of the point of release","Additional information"]
[null,null,"PA1"]
[null,null,"PA2"]
[null,null,"PA3"]
[null,null,"PA4"]
[null,null,"PA5"]
[null,null,"PA6"]
[null,null,"PA7"]
[null,null,"PA8"]
[null,null,"PA9"]
[null,null,"PA10"]
[null,null,"PA11"]
[null,null,"PA12"]
[null,null,"PA13"]
[null,null,"PA14"]
[null,null,"PA15"]
[null,null,"PA16"]
[null,null,"PA17"]
[null,null,"PA18"]
[null,null,"PA19"]
[null,null,"PA20"]
[]
[null,null,"Additional information"]
[null,null,"Comments:"]
[]
[null,"2.2","Emissions to water - Points of release"]
[null,null,null,null,"Please provide a flow diagram showing the waste water treatment systems and the processes associated to each one"]
[null,null,"Total number of monitored points of release"]
[null,null,"Emissions to water (PW)",null,null,"Name of attached diagram",null,"Document description"]
[null,null,0]
[]
[null,null,"Please provide the names of the points of release:"]
[null,null,"Emissions to water"]
[null,null,"Monitored point of release","Name of the point of release","Additional information"]
[null,null,"PW1"]
[null,null,"PW2"]
[null,null,"PW3"]
[null,null,"PW4"]
[null,null,"PW5"]
[null,null,"PW6"]
[null,null,"PW7"]
[null,null,"PW8"]
[null,null,"PW9"]
[null,null,"PW10"]
[null,null,"PW11"]
[null,null,"PW12"]
[null,null,"PW13"]
[null,null,"PW14"]
[null,null,"PW15"]
[null,null,"PW16"]
[null,null,"PW17"]
[null,null,"PW18"]
[null,null,"PW19"]
[null,null,"PW20"]
[]
[null,null,"Additional information"]
[null,null,"Comments:"]

{"sheet":"3. Foundries","index":3,"n_rows":406,"n_cols":8,"rows_kept":406,"cut":false,"hidden":false,"merged":[[244,2,244,3],[244,4,244,7],[246,3,246,7],[362,5,362,6],[253,6,253,7],[254,6,254,7],[256,6,256,7],[257,6,257,7],[259,6,259,7],[260,6,260,7],[262,6,262,7],[263,6,263,7],[300,4,300,7],[290,6,290,7],[291,6,291,7],[293,6,293,7],[294,6,294,7],[316,2,316,7],[327,2,327,3],[328,2,328,3],[332,5,332,7],[333,5,333,7],[334,5,334,7],[318,5,318,7],[60,6,60,7],[61,6,61,7],[62,6,62,7],[63,6,63,7],[39,4,39,5],[40,4,40,5],[41,4,41,5],[42,4,42,5],[243,4,243,7],[237,4,237,7],[238,4,238,7],[232,4,232,7],[226,4,226,7],[220,2,220,3],[219,4,219,7],[241,2,241,3],[243,2,243,3],[33,3,33,7],[34,3,34,7],[48,5,48,7],[45,3,45,4],[44,3,44,4],[46,3,46,4],[47,3,47,4],[166,3,166,7],[177,3,177,7],[188,3,188,7],[240,2,240,3],[36,6,36,7],[37,6,37,7],[38,6,38,7],[39,6,39,7],[40,6,40,7],[41,6,41,7],[42,6,42,7],[58,6,58,7],[59,6,59,7],[251,4,251,5],[251,6,251,7],[57,4,57,5],[58,4,58,5],[65,2,65,7],[235,2,235,3],[237,2,237,3],[238,2,238,3],[222,2,222,3],[225,2,225,3],[227,2,227,3],[229,2,229,3],[231,4,231,7],[232,2,232,3],[233,2,233,3],[234,2,234,3],[215,2,215,3],[199,3,199,7],[216,2,216,3],[217,2,217,3],[203,5,203,6],[204,5,204,6],[205,5,205,6],[219,2,219,3],[7,3,7,7],[18,2,18,7],[20,4,20,7],[21,4,21,7],[22,4,22,7],[23,4,23,7],[24,4,24,7],[47,5,47,7],[11,4,11,5],[12,4,12,5],[13,4,13,5],[14,4,14,5],[15,4,15,5],[16,4,16,5],[11,6,11,7],[12,6,12,7],[13,6,13,7],[14,6,14,7],[15,6,15,7],[16,6,16,7],[36,4,36,5],[37,4,37,5],[38,4,38,5],[8,3,8,7],[302,4,302,7],[111,3,111,7],[296,2,296,7],[206,5,206,6],[207,5,207,6],[208,5,208,6],[46,5,46,7],[228,2,228,3],[59,4,59,5],[60,4,60,5],[61,4,61,5],[62,4,62,5],[63,4,63,5],[57,6,57,7],[221,2,221,3],[223,2,223,3],[283,5,283,7],[284,5,284,7],[301,4,301,7],[226,2,226,3],[220,4,220,7],[89,4,89,5],[89,6,89,7],[247,3,247,7],[347,2,347,3],[345,5,345,7],[346,5,346,7],[337,2,337,7],[339,2,339,3],[340,2,340,3],[335,5,335,7],[5,2,5,5],[51,2,51,5],[31,2,31,5],[87,2,87,7],[298,5,298,6],[298,2,298,3],[250,2,250,3],[250,6,250,7],[239,2,239,3],[231,2,231,3],[9,3,9,7],[53,3,53,7],[54,3,54,7],[48,3,48,4],[44,5,44,7],[45,5,45,7],[100,3,100,7],[304,4,304,7],[26,4,26,7],[27,4,27,7],[29,4,29,7],[406,2,406,7],[349,2,349,7],[360,2,360,7],[405,2,405,7],[281,5,281,7],[282,5,282,7],[77,2,77,7],[211,2,211,7],[122,3,122,7],[133,3,133,7],[144,3,144,7],[266,2,266,7],[225,4,225,7],[213,2,213,3],[213,5,213,6],[155,3,155,7],[346,2,346,3],[303,4,303,7],[311,4,311,7],[312,4,312,7],[313,4,313,7],[314,4,314,7],[305,4,305,7],[339,5,339,7],[340,5,340,7],[322,4,322,7],[323,4,323,7],[341,5,341,7],[325,2,325,7],[307,2,307,7],[309,5,309,7],[320,4,320,7],[321,4,321,7],[343,2,343,3],[344,2,344,3],[345,2,345,3],[328,5,328,7],[329,5,329,7],[330,5,330,7],[329,2,329,3],[330,2,330,3],[331,2,331,3],[332,2,332,3],[333,2,333,3],[334,2,334,3],[335,2,335,3],[331,5,331,7],[372,6,372,7],[363,5,363,6],[364,5,364,6],[365,5,365,6],[366,5,366,6],[367,5,367,6],[368,5,368,6],[28,4,28,7],[288,5,288,7],[286,2,286,7],[277,2,277,7],[279,5,279,7],[280,5,280,7],[347,5,347,7],[342,5,342,7],[343,5,343,7],[344,5,344,7],[342,2,342,3],[253,2,254,2],[256,2,257,2],[259,2,260,2],[262,2,263,2],[341,2,341,3],[327,5,327,7],[373,3,373,5],[372,3,372,5],[248,3,248,7],[391,6,391,7],[392,6,392,7],[391,3,391,5],[392,3,392,5],[378,3,378,5],[378,6,378,7],[379,3,379,5],[379,6,379,7],[380,3,380,5],[380,6,380,7],[381,3,381,5],[381,6,381,7],[382,3,382,5],[382,6,382,7],[373,6,373,7],[374,3,374,5],[374,6,374,7],[375,3,375,5],[375,6,375,7],[376,3,376,5],[376,6,376,7],[377,3,377,5],[377,6,377,7],[394,3,394,5],[394,6,394,7],[395,3,395,5],[395,6,395,7],[396,3,396,5],[396,6,396,7],[397,3,397,5],[397,6,397,7],[383,3,383,5],[383,6,383,7],[384,3,384,5],[384,6,384,7],[403,3,403,5],[403,6,403,7],[385,3,385,5],[385,6,385,7],[386,3,386,5],[386,6,386,7],[387,3,387,5],[387,6,387,7],[398,3,398,5],[398,6,398,7],[399,3,399,5],[399,6,399,7],[400,3,400,5],[400,6,400,7],[401,3,401,5],[401,6,401,7],[402,3,402,5],[402,6,402,7],[393,3,393,5],[393,6,393,7]]}
[]
[null,"3","Contextual information on foundry activity"]
[]
[null,"3.1","Identification - foundry type"]
[]
[null,"3.1.1","Cast iron foundries",null,null,null,"Yes/No ▼"]
[]
[null,null,"Cast iron foundry type 1▼"]
[null,null,"Cast iron foundry type 2▼"]
[null,null,"Additional information on production"]
[]
[null,null,"Type","Type of product ▼","EUROSTAT prodcom code▼",null,"Additional information on product types"]
[null,null,"Type 1 ▼"]
[null,null,"Type 2 ▼"]
[null,null,"Type 3 ▼"]
[null,null,"Type 4 ▼"]
[null,null,"Type 5 ▼"]
[]
[null,null,"Cast iron treatment processes"]
[]
[null,null,"Process","Applied treatment processes for cast iron ▼","Additional information on  metal treatment processes"]
[null,null,"Process 1"]
[null,null,"Process 2"]
[null,null,"Process 3"]
[null,null,"Process 4"]
[]
[null,null,"Process","Applied process(es) for nodularisation ▼","Additional information on  nodularisation processes"]
[null,null,"Process 1"]
[null,null,"Process 2"]
[null,null,"Process 3"]
[]
[null,"3.1.2","Steel foundries",null,null,null,"Yes/No ▼"]
[]
[null,null,"Steel foundry type ▼"]
[null,null,"Additional information"]
[]
[null,null,"Type No","Type of product ▼","EUROSTAT prodcom code▼",null,"Additional information on steel product type"]
[null,null,"Type 1 ▼"]
[null,null,"Type 2 ▼"]
[null,null,"Type 3 ▼"]
[null,null,"Type 4 ▼"]
[null,null,"Type 5 ▼"]
[null,null,"Type 6 ▼"]
[]
[null,null,"Steel casting treatment processes","Applied refining / treatment processes for steel casting ▼",null,"Additional information on  steel casting treatment processes"]
[null,null,"Process 1"]
[null,null,"Process 2"]
[null,null,"Process 3"]
[null,null,"Process 4"]
[]
[]
[null,"3.1.3","Non-ferrous metal foundries ",null,null,null,"Yes/No ▼"]
[]
[null,null,"Non-ferrous metal foundry type   ▼"]
[null,null,"Additional information on the type of the NFM foundry"]
[null,null,"Purchased liquid metal as percentage of total metal input"]
[]
[null,null,null,"Type of product ▼","EUROSTAT prodcom code▼",null,"Any additional information on the NFM product type"]
[null,null,"Type 1 ▼"]
[null,null,"Type 2 ▼"]
[null,null,"Type 3 ▼"]
[null,null,"Type 4 ▼"]
[null,null,"Type 5 ▼"]
[null,null,"Type 6 ▼"]
[]
[null,null,"Non-ferrous metal casting treatment processes"]
[]
[null,null,"Applied treatment processes for non-ferrous casting ▼","Fluxing agent(s) used ▼","Degassing agent(s) used ▼","Grain refining and modification agent(s) used ▼","Oxidation control agent(s) used ▼","Any fluorinated greenhouse gas in use (e.g. SF6, NF3, PFCs)"]
[]
[]
[]
[]
[]
[]
[]
[]
[]
[null,null,"Additional information on:"]
[]
[null,null,"Applied treatment processes","Fluxing agents ","Substitution of Cl2g as degassing agents","Grain refining and modification agents","Oxidation control agents","Any fluorinated greenhouse gas in use (e.g. SF6, NF3, PFCs)"]
[]
[]
[]
[]
[]
[]
[]
[null,"3.2","Thermal processes - Furnaces  (e.g. melting, holding, thermal treatment, thermal sand regeneration, ladle heating, drying)"]
[]
[null,null,"Number of furnaces (F)",null,"Type of furnaces and number for each type"]
[]
[null,null,"Furnace 1 (F1)","Type of furnace ▼","Associated process ▼","Power input (kW)"]
[]
[]
[null,null,null,"Fuel type ▼","Additional info on fuel",null,null,"Input materials ▼"]
[null,null,"Fuel type 1",null,null,null,"Input material 1"]
[null,null,"Fuel type 2",null,null,null,"Input material 2"]
[null,null,"Fuel type 3",null,null,null,"Input material 3"]
[null,null,"Fuel type 4",null,null,null,"Input material 4"]
[]
[null,null,"Additional info on furnace"]
[]
[null,null,"Furnace 2 (F2)","Type of furnace ▼","Associated process ▼","Power input (kW)"]
[]
[]
[null,null,null,"Fuel type ▼","Additional info on fuel",null,null,"Input materials ▼"]
[null,null,"Fuel type 1",null,null,null,"Input material 1"]
[null,null,"Fuel type 2",null,null,null,"Input material 2"]
[null,null,"Fuel type 3",null,null,null,"Input material 3"]
[null,null,"Fuel type 4",null,null,null,"Input material 4"]
[]
[null,null,"Additional info on furnace"]
[]
[null,null,"Furnace 3 (F3)","Type of furnace ▼","Associated process ▼","Power input (kW)"]
[]
[]
[null,null,null,"Fuel type ▼","Additional info on fuel",null,null,"Input materials ▼"]
[null,null,"Fuel type 1",null,null,null,"Input material 1"]
[null,null,"Fuel type 2",null,null,null,"Input material 2"]
[null,null,"Fuel type 3",null,null,null,"Input material 3"]
[null,null,"Fuel type 4",null,null,null,"Input material 4"]
[]
[null,null,"Additional info on furnace"]
[]
[null,null,"Furnace 4 (F4)","Type of furnace ▼","Associated process ▼","Power input (kW)"]
[]
[]
[null,null,null,"Fuel type ▼","Additional info on fuel",null,null,"Input materials ▼"]
[null,null,"Fuel type 1",null,null,null,"Input material 1"]
[null,null,"Fuel type 2",null,null,null,"Input material 2"]
[null,null,"Fuel type 3",null,null,null,"Input material 3"]
[null,null,"Fuel type 4",null,null,null,"Input material 4"]
[]
[null,null,"Additional info on furnace"]
[]
[null,null,"Furnace 5 (F5)","Type of furnace ▼","Associated process ▼","Power input (kW)"]
[]
[]
[null,null,null,"Fuel type ▼","Additional info on fuel",null,null,"Input materials ▼"]
[null,null,"Fuel type 1",null,null,null,"Input material 1"]
[null,null,"Fuel type 2",null,null,null,"Input material 2"]
[null,null,"Fuel type 3",null,null,null,"Input material 3"]
[null,null,"Fuel type 4",null,null,null,"Input material 4"]
[]
[null,null,"Additional info on furnace"]
[]
[null,null,"Furnace 6 (F6)","Type of furnace ▼","Associated process ▼","Power input (kW)"]
[]
[]
[null,null,null,"Fuel type ▼","Additional info on fuel",null,null,"Input materials ▼"]
[null,null,"Fuel type 1",null,null,null,"Input material 1"]
[null,null,"Fuel type 2",null,null,null,"Input material 2"]
[null,null,"Fuel type 3",null,null,null,"Input material 3"]
[null,null,"Fuel type 4",null,null,null,"Input material 4"]
[]
[null,null,"Additional info on furnace"]
[]
[null,null,"Furnace 7 (F7)","Type of furnace ▼","Associated process ▼","Power input (kW)"]
[]
[]
[null,null,null,"Fuel type ▼","Additional info on fuel",null,null,"Input materials ▼"]
[null,null,"Fuel type 1",null,null,null,"Input material 1"]
[null,null,"Fuel type 2",null,null,null,"Input material 2"]
[null,null,"Fuel type 3",null,null,null,"Input material 3"]
[null,null,"Fuel type 4",null,null,null,"Input material 4"]
[]
[null,null,"Additional info on furnace"]
[]
[null,null,"Furnace 8 (F8)","Type of furnace ▼","Associated process ▼","Power input (kW)"]
[]
[]
[null,null,null,"Fuel type ▼","Additional info on fuel",null,null,"Input materials ▼"]
[null,null,"Fuel type 1",null,null,null,"Input material 1"]
[null,null,"Fuel type 2",null,null,null,"Input material 2"]
[null,null,"Fuel type 3",null,null,null,"Input material 3"]
[null,null,"Fuel type 4",null,null,null,"Input material 4"]
[]
[null,null,"Additional info on furnace"]
[]
[null,null,"Furnace 9 (F9)","Type of furnace ▼","Associated process ▼","Power input (kW)"]
[]
[]
[null,null,null,"Fuel type ▼","Additional info on fuel",null,null,"Input materials ▼"]
[null,null,"Fuel type 1",null,null,null,"Input material 1"]
[null,null,"Fuel type 2",null,null,null,"Input material 2"]
[null,null,"Fuel type 3",null,null,null,"Input material 3"]
[null,null,"Fuel type 4",null,null,null,"Input material 4"]
[]
[null,null,"Additional info on furnace"]
[]
[null,null,"Furnace 10 (F10)","Type of furnace ▼","Associated process ▼","Power input (kW)"]
[]
[]
[null,null,null,"Fuel type ▼","Additional info on fuel",null,null,"Input materials ▼"]
[null,null,"Fuel type 1",null,null,null,"Input material 1"]
[null,null,"Fuel type 2",null,null,null,"Input material 2"]
[null,null,"Fuel type 3",null,null,null,"Input material 3"]
[null,null,"Fuel type 4",null,null,null,"Input material 4"]
[]
[null,null,"Additional info on furnace"]
[]
[]
[null,"3.3"]
[null,null,null,"Pattern making","Material ▼","Additional information on pattern making"]
[null,null,null,"Material 1 ▼"]
[null,null,null,"Material 2 ▼"]
[null,null,null,"Material 3 ▼"]
[null,null,null,"Material 4 ▼"]
[null,null,null,"Material 5 ▼"]
[]
[]
[null,"3.4","Preparation of moulds and cores"]
[]
[null,"3.4.1","Number of moulding lines (ML)",null,null,"Additional information (ML)"]
[]
[null,"3.4.1.1","Molding Line 1"]
[null,null,"Type of sand ▼",null,"Binders ▼","Hardening process for chemically-bonded sand ▼","Resin types ▼","Any additional information on moulding"]
[]
[]
[null,null,"Moulding technique ▼",null,"Additional information on moulding technique"]
[]
[null,"3.4.1.2","Molding Line 2"]
[null,null,"Type of sand ▼",null,"Binders ▼","Hardening process for chemically-bonded sand ▼","Resin types ▼","Any additional information on moulding"]
[]
[]
[null,null,"Moulding technique ▼",null,"Additional information on moulding technique"]
[]
[null,"3.4.1.3","Molding Line 3"]
[null,null,"Type of sand ▼",null,"Binders ▼","Hardening process for chemically-bonded sand ▼","Resin types ▼","Any additional information on moulding"]
[]
[]
[null,null,"Moulding technique ▼",null,"Additional information on moulding technique"]
[]
[null,"3.4.1.4","Molding Line 4"]
[null,null,"Type of sand ▼",null,"Binders ▼","Hardening process for chemically-bonded sand ▼","Resin types ▼","Any additional information on moulding"]
[]
[]
[null,null,"Moulding technique ▼",null,"Additional information on moulding technique"]
[]
[null,"3.4.1.5","Molding Line 5"]
[null,null,"Type of sand ▼",null,"Binders ▼","Hardening process for chemically-bonded sand ▼","Resin types ▼","Any additional information on moulding"]
[]
[]
[null,null,"Moulding technique ▼",null,"Additional information on moulding technique"]
[]
[]
[null,"3.4.2","Permanent mould - Pattern material ▼","Additional information on permanent mould and on its use"]
[]
[]
[]
[null,"3.4.3","Number or core-making lines (CML)",null,null,"Additional information (CML)"]
[null,null,"Purchased cores as percentage of the total core quantity",null,"Basic characteristics/properties of the purchased cores (e.g. material, hazardouness)"]
[]
[null,"3.4.3.1","Core making line 1 (CML 1)","Core raw material ▼","Curing process for chemically-bonded sand ▼","Resin type ▼","Additional information (CML 1)"]
[]
[]
[null,"3.4.3.2","Core making line 2 (CML 2)","Core raw material ▼","Curing process for chemically-bonded sand ▼","Resin type ▼","Additional information (CML 2)"]
[]
[]
[null,"3.4.3.3","Core making line 3 (CML 3)","Core raw material ▼","Curing process for chemically-bonded sand ▼","Resin type ▼","Additional information  (CML 3)"]
[]
[]
[null,"3.4.3.4","Core making line 4 (CML 4)","Core raw material ▼","Curing process for chemically-bonded sand ▼","Resin type ▼","Additional information (CML 4)"]
[]
[]
[]
[null,"3.4.4","Cold box (amine hardened processes) - Information on amine type used"]
[]
[null,null,"Type","Amine type used ▼","Percentage in total amine mixture (%)","Additional information on amines used",null,"Other types of amines (e.g. primary or secondary) used"]
[null,null,"Type 1"]
[null,null,"Type 2"]
[null,null,"Type 3"]
[null,null,"Type 4"]
[null,null,"Type 5"]
[null,null,"Type 6"]
[]
[]
[null,"3.4.5","Furfuryl alcohol (FA) content in furan binders"]
[]
[null,null,"Resin type used","FA content (%)","Additional information on resin","Any applied technique to reduce FA content and/or to substitute FA with others"]
[]
[]
[]
[]
[]
[]
[null,"3.5","Coating of moulds and cores"]
[]
[null,null,"Number of coating lines",null,"Additional information on coating lines"]
[]
[null,null,"Coating line 1","Type of coating ▼","Coating process ▼","Coating curing process ▼","Additional information on coating line 1"]
[]
[]
[null,null,"Coating line 2","Type of coating ▼","Coating process ▼","Coating curing process ▼","Additional information on coating line 2"]
[]
[]
[null,"3.6","Casting (pouring)"]
[]
[null,null,"Number of casting machines",null,null,"Additional information (casting machines)"]
[]
[null,null,"Casting machine 1","Casting process ▼","Additional information on casting machine"]
[]
[null,null,"Casting machine 2","Casting process ▼","Additional information on casting machine"]
[]
[null,null,"Casting machine 3","Casting process ▼","Additional information on casting machine"]
[]
[]
[null,"3.7","Cooling"]
[]
[null,null,"Number of cooling lines",null,"Additional information (cooling lines)"]
[]
[null,null,"Cooling line number","Cooling process ▼","Additional information on cooling process"]
[null,null,"Cooling line 1"]
[null,null,"Cooling line 2"]
[null,null,"Cooling line 3"]
[]
[null,"3.8","Shake-out"]
[]
[null,null,"Number of shake-out lines",null,"Additional information on shake-out lines"]
[]
[null,null,"Shake-out line number","Shake-out process ▼","Additional information on shake-out lines (e.g. number of shake-out units (machines) per line)"]
[null,null,"Shake-out line 1"]
[null,null,"Shake-out line 2"]
[null,null,"Shake-out line 3"]
[]
[null,"3.9.1","Sand preparation (including primary sand reclamation)"]
[]
[null,null,"Applied sand preparation technique (select all relevant techniques in the cells below) ▼",null,"Type of sand at which the regeneration technique is applied ▼","Additional information (e.g. year of the machines, highly mechanized process, yield)"]
[]
[]
[]
[]
[]
[]
[]
[]
[]
[null,"3.9.2","Secondary sand reclamation"]
[]
[null,null,"Applied regeneration technique (select all relevant techniques in the cells below) ▼",null,"Type of sand at which the regeneration technique is applied ▼","Additional information (e.g. year of the machines, highly mechanized process, yield)"]
[]
[]
[]
[]
[]
[]
[]
[]
[]
[null,"3.10","Finishing processes"]
[]
[null,null,"Removal of the running system ▼","Additional information on removal of the running system (e.g. enclosed machines, mechanised process)","Removal of sand ▼","Additional information on sand removal (e.g. enclosed machines, mechanised process)","Removal of burrs ▼","Additional information on removal of burrs removal (e.g. enclosed machines, mechanised process)"]
[]
[]
[]
[]
[]
[]
[]
[]
[null,"3.11","Operational material efficiency (OME) (OME: the ratio of good casting to the total metal melt)"]
[]
[null,null,"Type of casting","Yield - OME value (%) (per type of casting)","How the OME value is derived ▼","Applied techniques to improve OME ▼",null,"Additional information on OME techniques"]
[]
[]
[]
[]
[]
[]
[]
[null,"3.12","Measures to reduce diffuse (fugitive) emissions "]
[]
[null,null,"Technique","Technique name  ▼",null,null,"Additional information(e.g. associated process or area)"]
[null,null,"Applied technique 1"]
[null,null,"Applied technique 2"]
[null,null,"Applied technique 3"]
[null,null,"Applied technique 4"]
[null,null,"Applied technique 5"]
[null,null,"Applied technique 6"]
[null,null,"Applied technique 7"]
[null,null,"Applied technique 8"]
[null,null,"Applied technique 9"]
[null,null,"Applied technique 10"]
[null,null,"Applied technique 11"]
[null,null,"Applied technique 12"]
[null,null,"Applied technique 13"]
[null,null,"Applied technique 14"]
[null,null,"Applied technique 15"]
[]
[null,"3.13","Applied techniques for raw material storage and handling "]
[]
[null,null,"Technique","Technique name  ▼",null,null,"Additional information on applied techniques"]
[null,null,"Applied technique 1"]
[null,null,"Applied technique 2"]
[null,null,"Applied technique 3"]
[null,null,"Applied technique 4"]
[null,null,"Applied technique 5"]
[null,null,"Applied technique 6"]
[null,null,"Applied technique 7"]
[null,null,"Applied technique 8"]
[null,null,"Applied technique 9"]
[null,null,"Applied technique 10"]
[null,null,"Applied technique 11"]
[null,null,"Applied technique 12"]
[]
[null,null,"Additional information - Comments"]

{"sheet":"4. Water-chemic-oil consumption","index":4,"n_rows":189,"n_cols":11,"rows_kept":189,"cut":false,"hidden":false,"merged":[[158,9,158,11],[171,8,171,11],[172,8,172,11],[173,8,173,11],[159,9,159,11],[163,8,163,11],[164,8,164,11],[165,8,165,11],[166,8,166,11],[167,8,167,11],[168,8,168,11],[169,8,169,11],[170,8,170,11],[149,9,149,11],[150,9,150,11],[151,9,151,11],[152,9,152,11],[153,9,153,11],[154,9,154,11],[155,9,155,11],[156,9,156,11],[157,9,157,11],[140,9,140,11],[141,9,141,11],[142,9,142,11],[143,9,143,11],[144,9,144,11],[145,9,145,11],[146,9,146,11],[147,9,147,11],[148,9,148,11],[127,8,127,11],[128,8,128,11],[129,8,129,11],[130,8,130,11],[131,8,131,11],[132,8,132,11],[133,8,133,11],[134,8,134,11],[135,8,135,11],[115,9,115,11],[116,9,116,11],[117,9,117,11],[118,9,118,11],[119,9,119,11],[120,9,120,11],[121,9,121,11],[125,8,125,11],[126,8,126,11],[28,8,28,11],[107,9,107,11],[108,9,108,11],[109,9,109,11],[110,9,110,11],[111,9,111,11],[112,9,112,11],[113,9,113,11],[114,9,114,11],[102,9,102,11],[103,9,103,11],[104,9,104,11],[105,9,105,11],[106,9,106,11],[30,8,30,11],[29,8,29,11],[50,8,50,11],[40,8,40,11],[31,8,31,11],[34,8,34,11],[35,8,35,11],[36,8,36,11],[56,6,56,7],[56,8,56,11],[51,6,51,7],[52,6,52,7],[52,8,52,11],[53,6,53,7],[53,8,53,11],[54,6,54,7],[54,8,54,11],[55,6,55,7],[55,8,55,11],[187,4,187,6],[187,7,187,11],[188,4,188,6],[188,7,188,11],[65,9,65,11],[66,9,66,11],[67,9,67,11],[68,9,68,11],[70,9,70,11],[69,9,69,11],[71,9,71,11],[72,9,72,11],[73,9,73,11],[83,9,83,11],[74,9,74,11],[75,9,75,11],[76,9,76,11],[77,9,77,11],[94,8,94,11],[95,8,95,11],[96,8,96,11],[97,8,97,11],[80,9,80,11],[81,9,81,11],[25,8,25,11],[8,7,8,8],[7,3,8,3],[25,3,27,3],[185,4,185,6],[185,7,185,11],[186,4,186,6],[186,7,186,11],[7,4,7,8],[82,9,82,11],[64,9,64,11],[26,8,26,11],[27,8,27,11],[33,6,33,7],[34,6,34,7],[35,6,35,7],[36,6,36,7],[26,6,26,7],[27,6,27,7],[32,8,32,11],[33,8,33,11],[12,9,12,11],[56,4,56,5],[51,4,51,5],[7,10,8,11],[7,9,8,9],[9,10,9,11],[10,10,10,11],[11,10,11,11],[22,8,22,11],[23,8,23,11],[24,8,24,11],[15,8,15,11],[16,8,16,11],[17,8,17,11],[19,8,19,11],[20,8,20,11],[18,8,18,11],[21,8,21,11],[10,7,10,8],[15,6,15,7],[9,7,9,8],[11,7,11,8],[16,6,16,7],[17,6,17,7],[18,6,18,7],[19,6,19,7],[55,4,55,5],[16,3,18,3],[19,3,21,3],[22,3,24,3],[31,3,33,3],[31,6,31,7],[32,6,32,7],[20,6,20,7],[21,6,21,7],[22,6,22,7],[28,3,30,3],[23,6,23,7],[24,6,24,7],[25,6,25,7],[37,3,39,3],[48,4,48,5],[40,6,40,7],[41,6,41,7],[46,4,46,5],[54,4,54,5],[52,4,52,5],[53,4,53,5],[50,6,50,7],[42,6,42,7],[37,6,37,7],[37,8,37,11],[38,6,38,7],[38,8,38,11],[39,6,39,7],[39,8,39,11],[51,8,51,11],[40,1,42,1],[46,6,46,7],[46,8,46,11],[47,6,47,7],[47,8,47,11],[48,6,48,7],[48,8,48,11],[49,6,49,7],[47,4,47,5],[41,8,41,11],[42,8,42,11],[40,3,42,3],[49,8,49,11],[49,4,49,5],[50,4,50,5],[184,4,184,6],[184,7,184,11],[34,3,36,3],[180,4,180,6],[180,7,180,11],[181,4,181,6],[181,7,181,11],[182,4,182,6],[182,7,182,11],[183,4,183,6],[183,7,183,11],[78,9,78,11],[79,9,79,11],[87,8,87,11],[88,8,88,11],[89,8,89,11],[90,8,90,11],[91,8,91,11],[92,8,92,11],[93,8,93,11],[179,4,179,6],[178,4,178,6],[178,7,178,11],[179,7,179,11]]}
[]
[null,"4.1",null,"Water consumption"]
[]
[null,null,null,"The data reported in this sheet correspond to the net (fresh) water consumption of the installation (i.e. excluding recycled/reused water and once-through cooling water)"]
[]
[null,"4.1.1",null,"Overall water consumption "]
[]
[null,null,null,"Reference year ▼","Specific water consumption ",null,null,null,null,"How is the water consumption monitored? ▼","Additional information on consumption"]
[null,null,null,null,"Specific net (fresh) water consumption (m3/tonne of liquid metal)","Associated processes to the water consumption","Proportion of recycled/reused water in the net (fresh) water consumed (%)","Source(s) of fresh water"]
[]
[]
[]
[]
[null,"4.1.2",null,"Process-related specific water consumption "]
[]
[null,null,null,"Process","Reference year ▼","Specific net (fresh) water consumption (m3/tonne of liquid metal)","Additional information (e.g. metering scheme in place)",null,"Contextual information related to the reported values"]
[null,null,null,"Cupola furnace wet scrubbing"]
[]
[]
[null,null,null,"High-pressure die-casting"]
[]
[]
[null,null,null,"Wet scrubbing for core-making using SO2 process"]
[]
[]
[null,null,null,"Wet scrubbing for croning mould / core-making"]
[]
[]
[null,null,null,"Moulding with wet sand"]
[]
[]
[null,null,null,"Wet scrubbing for cold-box mould / core-making"]
[]
[]
[null,null,null,"Wet treatment of used sand"]
[]
[]
[null,null,null,"Finishing process (machining)"]
[]
[]
[null,"Any other processes"]
[]
[]
[]
[null,"4.1.3",null,"Techniques applied for reducing water consumption"]
[]
[null,null,null,null,"Technique name ▼",null,"Water stream the technique applies to  ▼",null,"Additional information"]
[null,null,null,"Applied technique 1"]
[null,null,null,"Applied technique 2"]
[null,null,null,"Applied technique 3"]
[null,null,null,"Applied technique 4"]
[null,null,null,"Applied technique 5"]
[null,null,null,"Applied technique 6"]
[null,null,null,"Applied technique 7"]
[null,null,null,"Applied technique 8"]
[null,null,null,"Applied technique 9"]
[null,null,null,"Applied technique 10"]
[]
[]
[null,"4.2",null,"Chemicals systems / release agents and lubricating oils consumption"]
[]
[null,"4.2.1.1",null,"Consumption of chemicals"]
[null,null,null,"Reference year ▼"]
[]
[null,null,null,"Chemical binding system in use ▼","Percentage","Associated process(es)","Purpose of use ","Hazard statement (H-phrases - CLP hazard statements) ▼","Potential substitution techniques for hazardous or odorous chemicals applied or tested","Additional information on chemicals used"]
[]
[]
[]
[]
[]
[]
[]
[]
[]
[]
[]
[]
[]
[]
[]
[]
[]
[]
[]
[]
[null,"4.2.1.2",null,"Consumption of mould-release agents and lubricating oils"]
[]
[null,null,null,"Release agent / lubricating oil / other chemical used","Specific consumption (kg/t of good casting)","Specific consumption (kg/t of liquid metal)","Associated process(es)","Hazard statement (H-phrases - CLP hazard statements) ▼","Additional information on reported release agents / lubricating oils (e.g. organic content)"]
[]
[]
[]
[]
[]
[]
[]
[]
[]
[]
[]
[null,"4.2.2.1",null,"Consumption of chemicals"]
[null,null,null,"Reference year ▼"]
[]
[null,null,null,"Chemical binding system in use ▼","Percentage","Associated process(es)","Purpose of use ","Hazard statement (H-phrases - CLP hazard statements) ▼","Potential substitution techniques for hazardous or odorous chemicals applied or tested","Additional information on chemicals used"]
[]
[]
[]
[]
[]
[]
[]
[]
[]
[]
[]
[]
[]
[]
[]
[]
[]
[]
[]
[]
[null,"4.2.2.2",null,"Consumption of mould-release agents and lubricating oils"]
[]
[null,null,null,"Release agent / lubricating oil / other chemical used","Specific consumption (kg/t of good casting)","Specific consumption (kg/t of liquid metal)","Associated process(es)","Hazard statement (H-phrases - CLP hazard statements) ▼","Additional information on reported release agents / lubricating oils (e.g. organic content)"]
[]
[]
[]
[]
[]
[]
[]
[]
[]
[]
[]
[null,"4.2.3.1",null,"Consumption of chemicals"]
[null,null,null,"Reference year ▼"]
[]
[null,null,null,"Chemical binding system in use ▼","Percentage","Associated process(es)","Purpose of use ","Hazard statement (H-phrases - CLP hazard statements) ▼","Potential substitution techniques for hazardous or odorous chemicals applied or tested","Additional information on chemicals used"]
[]
[]
[]
[]
[]
[]
[]
[]
[]
[]
[]
[]
[]
[]
[]
[]
[]
[]
[]
[]
[null,"4.2.2.2",null,"Consumption of mould-release agents and lubricating oils"]
[]
[null,null,null,"Release agent / lubricating oil / other chemical used","Specific consumption (kg/t of good casting)","Specific consumption (kg/t of liquid metal)","Associated process(es)","Hazard statement (H-phrases - CLP hazard statements) ▼","Additional information on reported release agents / lubricating oils (e.g. organic content)"]
[]
[]
[]
[]
[]
[]
[]
[]
[]
[]
[]
[]
[null,"4.3",null,"Applied techniques for reducing the consumption of chemicals / release agents / lubricating oils"]
[]
[null,null,null,null,"Technique name ▼",null,null,"Additional information"]
[null,null,null,"Applied technique 1"]
[null,null,null,"Applied technique 2"]
[null,null,null,"Applied technique 3"]
[null,null,null,"Applied technique 4"]
[null,null,null,"Applied technique 5"]
[null,null,null,"Applied technique 6"]
[null,null,null,"Applied technique 7"]
[null,null,null,"Applied technique 8"]
[null,null,null,"Applied technique 9"]
[null,null,null,"Applied technique 10"]

{"sheet":"5. Energy consumption ","index":5,"n_rows":49,"n_cols":12,"rows_kept":49,"cut":false,"hidden":false,"merged":[[47,4,47,7],[48,4,48,7],[44,4,44,7],[45,4,45,7],[46,4,46,7],[44,9,44,12],[45,9,45,12],[46,9,46,12],[47,9,47,12],[48,9,48,12],[41,4,41,7],[42,4,42,7],[43,4,43,7],[41,9,41,12],[42,9,42,12],[43,9,43,12],[39,4,39,7],[40,4,40,7],[38,9,38,12],[39,9,39,12],[40,9,40,12],[14,3,16,3],[17,3,19,3],[23,3,25,3],[32,3,34,3],[38,4,38,7],[20,3,22,3],[6,10,6,12],[7,10,7,12],[8,10,8,12],[10,10,10,12],[18,11,18,12],[13,11,13,12],[14,11,14,12],[15,11,15,12],[16,11,16,12],[17,11,17,12],[19,11,19,12],[20,11,20,12],[21,11,21,12],[22,11,22,12],[23,11,23,12],[24,11,24,12],[25,11,25,12],[26,11,26,12],[27,11,27,12],[28,11,28,12],[29,11,29,12],[29,1,34,1],[26,3,28,3],[29,3,31,3],[30,11,30,12],[31,11,31,12],[32,11,32,12],[33,11,33,12],[34,11,34,12]]}
[]
[null,"5",null,"Energy consumption"]
[]
[null,null,null,"The data reported in this sheet correspond to the net energy consumption of the installation (i.e. excluding energy recovered)."]
[null,"5.1",null,"Foundries: Overall energy consumption"]
[]
[null,null,null,"Reference year ▼","Specific net energy consumption (kWh/tonne of liquid metal)","Specific electricity consumption (kWh/tonne of liquid metal)","Specific net heat (e.g. added steam) consumption (kWh/tonne of liquid metal)","How is the energy consumption monitored?▼","Proportion of  energy recovered in the total net energy consumed (%)","How is the proportion of energy recovered monitored?▼","Additional information (overall energy consumption)"]
[]
[]
[]
[]
[null,"5.2",null,"Foundries: Specific energy consumption on process level"]
[]
[null,null,null,"Process","Reference year ▼","Specific net energy consumption (kWh/tonne of liquid metal)","Specific electricity consumption (kWh/tonne of liquid metal)","Specific net heat (e.g. added steam) consumption (kWh/tonne of liquid metal)","How is the energy consumption monitored?▼","Proportion of  energy recovered in the total net energy consumed (%)","How is the proportion of energy recovered monitored?▼","Additional information on specific energy conumption at process level"]
[null,null,null,"Melting "]
[]
[]
[null,null,null,"Holding - pouring"]
[]
[]
[null,null,null,"Ladle preheating"]
[]
[]
[null,null,null,"Heat treatment"]
[]
[]
[null,null,null,"Drying"]
[]
[]
[null,"Other specific processes"]
[]
[]
[]
[]
[]
[]
[null,"5.3",null,"Applied techniques for reducing energy consumption"]
[]
[null,null,null,null,"Technique name ▼",null,null,null,"Year of implementation","Additional information"]
[null,null,null,"Applied technique 1"]
[null,null,null,"Applied technique 2"]
[null,null,null,"Applied technique 3"]
[null,null,null,"Applied technique 4"]
[null,null,null,"Applied technique 5"]
[null,null,null,"Applied technique 6"]
[null,null,null,"Applied technique 7"]
[null,null,null,"Applied technique 8"]
[null,null,null,"Applied technique 9"]
[null,null,null,"Applied technique 10"]

{"sheet":"6. Emissions to air","index":6,"n_rows":272,"n_cols":27,"rows_kept":272,"cut":false,"hidden":true,"merged":[[260,1,268,1],[260,3,262,3],[260,4,262,4],[260,26,260,27],[261,26,261,27],[262,26,262,27],[263,3,265,3],[263,4,265,4],[263,26,263,27],[264,26,264,27],[265,26,265,27],[266,3,268,3],[266,4,268,4],[266,26,266,27],[267,26,267,27],[268,26,268,27],[128,1,133,1],[134,1,136,1],[137,1,193,1],[194,1,199,1],[75,4,76,4],[137,4,139,4],[128,4,130,4],[176,3,178,3],[176,4,178,4],[173,3,175,3],[173,4,175,4],[179,3,181,3],[179,4,181,4],[77,3,79,3],[137,3,139,3],[125,4,127,4],[161,3,163,3],[161,4,163,4],[128,3,130,3],[95,4,97,4],[98,3,100,3],[188,3,190,3],[155,4,157,4],[164,4,166,4],[203,3,205,3],[209,3,211,3],[209,4,211,4],[203,4,205,4],[206,3,208,3],[212,3,214,3],[212,4,214,4],[206,4,208,4],[58,4,60,4],[185,4,187,4],[75,3,76,3],[61,4,63,4],[194,3,196,3],[197,3,199,3],[200,3,202,3],[200,4,202,4],[194,4,196,4],[197,4,199,4],[191,3,193,3],[191,4,193,4],[89,4,91,4],[92,3,94,3],[92,4,94,4],[95,3,97,3],[230,3,232,3],[230,4,232,4],[218,3,220,3],[218,4,220,4],[221,3,223,3],[221,4,223,4],[224,3,226,3],[224,4,226,4],[215,3,217,3],[215,4,217,4],[227,3,229,3],[227,4,229,4],[272,3,272,25],[233,3,235,3],[233,4,235,4],[236,3,238,3],[236,4,238,4],[239,3,241,3],[239,4,241,4],[242,3,244,3],[242,4,244,4],[245,3,247,3],[245,4,247,4],[251,4,253,4],[251,3,253,3],[254,3,256,3],[257,3,259,3],[254,4,256,4],[257,4,259,4],[55,12,55,13],[101,4,103,4],[64,12,64,13],[77,4,79,4],[69,3,69,7],[101,3,103,3],[89,3,91,3],[58,3,60,3],[59,12,59,13],[80,3,82,3],[80,4,82,4],[55,4,57,4],[3,4,3,6],[4,4,4,6],[30,18,30,26],[31,18,31,26],[75,24,75,25],[53,12,54,13],[30,11,30,17],[33,11,33,17],[37,11,37,26],[31,11,31,17],[39,11,39,26],[32,18,32,26],[33,18,33,26],[34,18,34,26],[35,18,35,26],[10,3,10,6],[10,7,10,11],[75,14,76,14],[64,4,66,4],[37,3,37,10],[53,9,54,9],[34,11,34,17],[75,5,76,5],[75,6,76,6],[158,3,160,3],[170,3,172,3],[170,4,172,4],[155,3,157,3],[62,12,62,13],[75,7,76,7],[75,8,76,8],[119,3,121,3],[119,4,121,4],[110,3,112,3],[110,4,112,4],[113,3,115,3],[86,3,88,3],[86,4,88,4],[107,3,109,3],[104,3,106,3],[113,4,115,4],[98,4,100,4],[75,10,76,10],[75,11,76,11],[65,12,65,13],[63,12,63,13],[152,3,154,3],[152,4,154,4],[143,3,145,3],[143,4,145,4],[53,8,54,8],[53,7,54,7],[53,6,54,6],[53,4,54,4],[53,5,54,5],[134,4,136,4],[140,3,142,3],[140,4,142,4],[122,4,124,4],[64,3,66,3],[125,3,127,3],[61,3,63,3],[55,3,57,3],[104,4,106,4],[53,3,54,3],[185,3,187,3],[75,26,76,27],[82,26,82,27],[81,26,81,27],[80,26,80,27],[108,26,108,27],[107,26,107,27],[121,26,121,27],[120,26,120,27],[119,26,119,27],[118,26,118,27],[117,26,117,27],[116,26,116,27],[83,26,83,27],[113,26,113,27],[112,26,112,27],[111,26,111,27],[110,26,110,27],[109,26,109,27],[104,26,104,27],[149,3,151,3],[149,4,151,4],[146,3,148,3],[146,4,148,4],[200,1,250,1],[251,1,259,1],[75,9,76,9],[182,4,184,4],[75,15,75,23],[83,3,85,3],[83,4,85,4],[75,12,76,12],[75,13,76,13],[131,3,133,3],[134,3,136,3],[164,3,166,3],[158,4,160,4],[131,4,133,4],[122,3,124,3],[107,4,109,4],[116,3,118,3],[116,4,118,4],[248,3,250,3],[248,4,250,4],[188,4,190,4],[182,3,184,3],[167,3,169,3],[167,4,169,4],[79,26,79,27],[78,26,78,27],[77,26,77,27],[85,26,85,27],[84,26,84,27],[69,8,69,27],[56,12,56,13],[58,12,58,13],[61,12,61,13],[66,12,66,13],[56,15,56,27],[57,15,57,27],[58,15,58,27],[59,15,59,27],[60,15,60,27],[57,12,57,13],[60,12,60,13],[62,15,62,27],[61,15,61,27],[63,15,63,27],[64,15,64,27],[65,15,65,27],[66,15,66,27],[122,26,122,27],[123,26,123,27],[92,26,92,27],[91,26,91,27],[90,26,90,27],[89,26,89,27],[88,26,88,27],[87,26,87,27],[86,26,86,27],[101,26,101,27],[100,26,100,27],[99,26,99,27],[98,26,98,27],[97,26,97,27],[96,26,96,27],[106,26,106,27],[105,26,105,27],[115,26,115,27],[114,26,114,27],[103,26,103,27],[102,26,102,27],[95,26,95,27],[94,26,94,27],[93,26,93,27],[124,26,124,27],[125,26,125,27],[126,26,126,27],[127,26,127,27],[128,26,128,27],[129,26,129,27],[130,26,130,27],[131,26,131,27],[132,26,132,27],[133,26,133,27],[134,26,134,27],[135,26,135,27],[136,26,136,27],[137,26,137,27],[138,26,138,27],[139,26,139,27],[140,26,140,27],[141,26,141,27],[142,26,142,27],[143,26,143,27],[144,26,144,27],[145,26,145,27],[146,26,146,27],[147,26,147,27],[148,26,148,27],[149,26,149,27],[150,26,150,27],[151,26,151,27],[152,26,152,27],[153,26,153,27],[154,26,154,27],[155,26,155,27],[156,26,156,27],[157,26,157,27],[158,26,158,27],[159,26,159,27],[160,26,160,27],[161,26,161,27],[162,26,162,27],[163,26,163,27],[164,26,164,27],[165,26,165,27],[166,26,166,27],[167,26,167,27],[168,26,168,27],[169,26,169,27],[170,26,170,27],[171,26,171,27],[172,26,172,27],[173,26,173,27],[174,26,174,27],[175,26,175,27],[176,26,176,27],[177,26,177,27],[178,26,178,27],[179,26,179,27],[180,26,180,27],[181,26,181,27],[182,26,182,27],[183,26,183,27],[184,26,184,27],[185,26,185,27],[186,26,186,27],[187,26,187,27],[188,26,188,27],[189,26,189,27],[190,26,190,27],[191,26,191,27],[192,26,192,27],[193,26,193,27],[194,26,194,27],[195,26,195,27],[196,26,196,27],[197,26,197,27],[198,26,198,27],[199,26,199,27],[200,26,200,27],[201,26,201,27],[202,26,202,27],[203,26,203,27],[204,26,204,27],[205,26,205,27],[206,26,206,27],[207,26,207,27],[208,26,208,27],[209,26,209,27],[210,26,210,27],[211,26,211,27],[212,26,212,27],[213,26,213,27],[214,26,214,27],[215,26,215,27],[216,26,216,27],[217,26,217,27],[218,26,218,27],[219,26,219,27],[220,26,220,27],[221,26,221,27],[222,26,222,27],[223,26,223,27],[224,26,224,27],[225,26,225,27],[226,26,226,27],[227,26,227,27],[228,26,228,27],[229,26,229,27],[230,26,230,27],[231,26,231,27],[247,26,247,27],[248,26,248,27],[249,26,249,27],[232,26,232,27],[233,26,233,27],[234,26,234,27],[235,26,235,27],[236,26,236,27],[237,26,237,27],[238,26,238,27],[239,26,239,27],[240,26,240,27],[12,3,12,6],[12,7,12,11],[13,3,13,6],[13,7,13,11],[14,3,14,6],[14,7,14,11],[15,3,15,6],[15,7,15,11],[259,26,259,27],[250,26,250,27],[251,26,251,27],[252,26,252,27],[253,26,253,27],[254,26,254,27],[255,26,255,27],[256,26,256,27],[257,26,257,27],[258,26,258,27],[241,26,241,27],[242,26,242,27],[243,26,243,27],[244,26,244,27],[245,26,245,27],[246,26,246,27],[2,3,2,6],[53,14,54,14],[53,15,54,27],[55,15,55,27],[21,3,21,6],[21,7,21,11],[22,3,22,6],[22,7,22,11],[23,3,23,6],[23,7,23,11],[24,3,24,6],[24,7,24,11],[16,3,16,6],[16,7,16,11],[17,3,17,6],[17,7,17,11],[18,3,18,6],[18,7,18,11],[19,3,19,6],[19,7,19,11],[20,3,20,6],[20,7,20,11],[11,3,11,6],[11,7,11,11],[39,3,39,10],[35,11,35,17],[53,11,54,11],[53,10,54,10],[49,3,49,13],[32,11,32,17],[30,4,30,7],[31,4,31,7],[32,4,32,7],[33,4,33,7],[34,4,34,7],[35,4,35,7],[30,8,30,10],[31,8,31,10],[32,8,32,10],[33,8,33,10],[34,8,34,10],[35,8,35,10]]}
[]
[null,"6",null,"Emissions to air - Outlet 1"]
[null,"6.1.1",null,"Monitored point of release "]
[null,null,null,"Identification of the point of release  (as indicated in sheet 3) ","Usual name of the point of release (as mentioned in the permit, flow diagrams, etc.)"]
[]
[]
[]
[]
[]
[]
[null,"6.1.2",null,"Associated processes with this point of release ▼",null,null,null,"Additional information (e.g. configurations associated with this point of release)"]
[]
[]
[]
[]
[]
[]
[]
[]
[]
[]
[]
[]
[]
[]
[]
[null,"6.2",null,"Information on waste gas treatment techniques"]
[]
[null,null,null,"The techniques implemented should be clearly presented in the attached flow diagram (see worksheet 2), laying out the flow of waste gas streams through the waste gas treatment system."]
[]
[null,null,null,null,"Abatement technique ▼",null,null,null,"Major plant upgrades during the reporting reference period",null,null,"Justification/rationale for using this technique or combination of techniques",null,null,null,null,null,null,"Additional information on the abatement technique"]
[null,null,null,1]
[null,null,null,2]
[null,null,null,3]
[null,null,null,4]
[null,null,null,5]
[]
[null,null,null,"What are the main factors which influence the design/operation of the abatement system?"]
[]
[null,null,null,"If there is no waste gas treatment system or the generic techniques cannot be applied, please explain why:"]
[]
[]
[]
[]
[]
[]
[]
[]
[null,"6.3",null,"Emissions to air"]
[null,null,null,"Please report all emission data at standard conditions: dry gas, temperature of 273.15 K, pressure of 101.3 kPa and, if relevant, the reference O2 content (%).\nThe data reported here should refer only to normal operating conditions; data refering to other-than-normal operating conditions (OTNOC), as well as periods when the plant was not operational, should be excluded.\nIf the measured value is below the detection limit, as a minimum, report the detection limit of the measurement method and give information in the corresponding additional information cell (last column)."]
[]
[null,"6.3.1",null,"Waste gas characteristics"]
[]
[null,null,null,"Parameter","Unit","Reference year ▼","Sampling period (h)","Frequency of measurement ▼","Minimum value of the measurements made during the reference year","Average value of the measurements made during the reference year","Maximum value of the measurements made during the reference year","95th percentile of the measurements made during the reference year","Number of measurements taken during the year considered for the values reported",null,"Standard monitoring method ▼","Additional information"]
[]
[null,null,null,"Flow","Nm3/h"]
[]
[]
[null,null,null,"Temperature","oC"]
[]
[]
[null,null,null,"Humidity","%"]
[]
[]
[null,null,null,"O2 content","vol-%"]
[]
[]
[]
[]
[null,null,null,"Specify the reference conditions as set in the permit if they differ from the following conditions:  dry gas, temperature of 273.15 K, a pressure of 101.3 kPa."]
[]
[]
[]
[null,"6.3.2",null,"Emissions to air after the final abatement technique"]
[]
[null,null,null,"KEI","Unit","Reference year","Sampling period (h)","Frequency of measurement ▼","Minimum value of the measurements made during the reference year","Average value of the measurements made during the reference year","Maximum value of the measurements made during the reference year","95th percentile of the measurements made during the reference year","Number of measurements taken during the year considered for the values reported","Average removal efficiency (%)","O2 level","Contextual monitoring information",null,null,null,null,null,null,null,null,"Load",null,"Additional information (e.g. ELV as load)"]
[null,null,null,null,null,null,null,null,null,null,null,null,null,null,null,"Standard monitoring method ▼","Measurement uncertainty (expressed in the same unit as the measurement) ","Has the uncertainty already been taken into account? ▼","Limit of detection","Limit of quantification","Emission limit value (ELV) in the permit (concentration in mg/Nm3)","Emission limit value (ELV) in the permit (load in g/h)","Averaging period for ELVs ▼","Purpose of monitoring ▼","Specific emission load (in kg/h)","Emission load calculation"]
[null,null,null,"Odour","ouE/Nm3"]
[]
[]
[null,null,null,"Dust","mg/Nm3"]
[]
[]
[null,null,null,"NH3","mg/Nm3"]
[]
[]
[null,null,null,"TVOC","mg/Nm3"]
[]
[]
[null,null,null,"Benzene","mg/Nm3"]
[]
[]
[null,null,null,"Toluene","mg/Nm3"]
[]
[]
[null,null,null,"Ethylbenzene","mg/Nm3"]
[]
[]
[null,null,null,"Xylenes","mg/Nm3"]
[]
[]
[null,null,null,"Formaldehyde","mg/Nm3"]
[]
[]
[null,null,null,"NOX","mg/Nm3"]
[]
[]
[null,null,null,"SO2","mg/Nm3"]
[]
[]
[null,null,null,"CO","mg/Nm3"]
[]
[]
[null,null,null,"HCl","mg/Nm3"]
[]
[]
[null,null,null,"HF","mg/Nm3"]
[]
[]
[null,null,null,"Dioxins and furans (PCDDs/Fs)","ng WHO-TEQ/Nm3"]
[]
[]
[null,null,null,"Dioxin-like PCBs","ng WHO-TEQ/Nm3"]
[]
[]
[null,null,null,"Chlorine (Cl2(g))","mg/Nm3"]
[]
[]
[null,"Amines",null,null,"mg/Nm3"]
[]
[]
[null,null,null,null,"mg/Nm3"]
[]
[]
[null,"Phenols",null,null,"mg/Nm3"]
[]
[]
[null,"Metals",null,"Al","mg/Nm3"]
[]
[]
[null,null,null,"As","mg/Nm3"]
[]
[]
[null,null,null,"Cd","mg/Nm3"]
[]
[]
[null,null,null,"Co","mg/Nm3"]
[]
[]
[null,null,null,"Crtotal","mg/Nm3"]
[]
[]
[null,null,null,"Cr(VI)","mg/Nm3"]
[]
[]
[null,null,null,"Cu","mg/Nm3"]
[]
[]
[null,null,null,"Mg","mg/Nm3"]
[]
[]
[null,null,null,"Mn","mg/Nm3"]
[]
[]
[null,null,null,"Ni","mg/Nm3"]
[]
[]
[null,null,null,"Pb","mg/Nm3"]
[]
[]
[null,null,null,"Sb","mg/Nm3"]
[]
[]
[null,null,null,"Se","mg/Nm3"]
[]
[]
[null,null,null,"Sn","mg/Nm3"]
[]
[]
[null,null,null,"Te","mg/Nm3"]
[]
[]
[null,null,null,"Tl","mg/Nm3"]
[]
[]
[null,null,null,"V","mg/Nm3"]
[]
[]
[null,null,null,"Zn","mg/Nm3"]
[]
[]
[null,null,null,"Hg","mg/Nm3"]
[]
[]
[null,"Group of metals",null,null,"mg/Nm3"]
[]
[]
[null,null,null,null,"mg/Nm3"]
[]
[]
[null,"Polyaromatic hydrocarbons (16 US-EPA PAHs)",null,"PAHs","mg/Nm3"]
[]
[]
[null,null,null,"B[a]P","mg/Nm3"]
[]
[]
[null,null,null,"Naphthalene","mg/Nm3"]
[]
[]
[null,null,null,"Benzo[ghi]perylene","mg/Nm3"]
[]
[]
[null,null,null,"Antracene","mg/Nm3"]
[]
[]
[null,null,null,"Fluoranthene","mg/Nm3"]
[]
[]
[null,null,null,"Acenaphthene","mg/Nm3"]
[]
[]
[null,null,null,"Acenaphthylene","mg/Nm3"]
[]
[]
[null,null,null,"Fluorene","mg/Nm3"]
[]
[]
[null,null,null,"Phenanthrene","mg/Nm3"]
[]
[]
[null,null,null,"Pyrene","mg/Nm3"]
[]
[]
[null,null,null,"Benzo[a]anthracene","mg/Nm3"]
[]
[]
[null,null,null,"Chrysene","mg/Nm3"]
[]
[]
[null,null,null,"Benzo[b] fluoranthene","mg/Nm3"]
[]
[]
[null,null,null,"Benzo[k] fluoranthene","mg/Nm3"]
[]
[]
[null,null,null,"Dibenzo[a,h]anthracene","mg/Nm3"]
[]
[]
[null,null,null,"Indeno[1,2,3,cd] pyrene","mg/Nm3"]
[]
[]
[null,"Other PAHs",null,null,"mg/Nm3"]
[]
[]
[null,null,null,null,"mg/Nm3"]
[]
[]
[null,null,null,null,"mg/Nm3"]
[]
[]
[null,"Any other parameter",null,null,"mg/Nm3"]
[]
[]
[null,null,null,null,"mg/Nm3"]
[]
[]
[null,null,null,null,"mg/Nm3"]
[]
[]
[]
[]
[null,null,null,"Comments"]

{"sheet":"7. Emissions to water","index":7,"n_rows":153,"n_cols":27,"rows_kept":153,"cut":false,"hidden":true,"merged":[[35,8,35,10],[36,4,36,7],[36,8,36,10],[37,4,37,7],[37,8,37,10],[38,4,38,7],[38,8,38,10],[39,4,39,7],[39,8,39,10],[117,1,137,1],[38,11,38,17],[34,11,34,17],[37,11,37,17],[53,3,55,3],[42,3,42,10],[44,3,44,10],[53,4,55,4],[52,16,52,27],[53,16,53,27],[54,16,54,27],[55,16,55,27],[119,26,119,27],[120,26,120,27],[99,3,101,3],[111,4,113,4],[132,3,134,3],[132,4,134,4],[135,3,137,3],[135,4,137,4],[132,26,132,27],[133,26,133,27],[34,4,34,7],[34,8,34,10],[138,1,149,1],[147,3,149,3],[147,4,149,4],[147,26,147,27],[148,26,148,27],[149,26,149,27],[141,3,143,3],[141,4,143,4],[141,26,141,27],[142,26,142,27],[143,26,143,27],[144,3,146,3],[144,4,146,4],[144,26,144,27],[145,26,145,27],[146,26,146,27],[138,3,140,3],[138,4,140,4],[139,26,139,27],[140,26,140,27],[138,26,138,27],[134,26,134,27],[135,26,135,27],[136,26,136,27],[137,26,137,27],[128,26,128,27],[125,26,125,27],[126,26,126,27],[127,26,127,27],[130,26,130,27],[131,26,131,27],[129,26,129,27],[120,4,122,4],[108,3,110,3],[108,4,110,4],[75,26,75,27],[76,26,76,27],[31,11,31,17],[32,11,32,17],[114,4,116,4],[59,3,61,3],[59,13,59,14],[60,13,60,14],[56,3,58,3],[62,3,64,3],[62,4,64,4],[75,4,77,4],[78,4,80,4],[81,4,83,4],[84,4,86,4],[87,4,89,4],[75,3,77,3],[78,3,80,3],[31,4,31,7],[31,8,31,10],[33,8,33,10],[56,16,56,27],[57,16,57,27],[58,16,58,27],[59,16,59,27],[53,13,53,14],[55,13,55,14],[121,26,121,27],[122,26,122,27],[73,15,73,23],[56,13,56,14],[57,13,57,14],[58,13,58,14],[62,13,62,14],[73,24,73,25],[54,13,54,14],[63,13,63,14],[64,13,64,14],[86,26,86,27],[87,26,87,27],[88,26,88,27],[89,26,89,27],[99,26,99,27],[82,26,82,27],[84,26,84,27],[59,4,61,4],[102,3,104,3],[102,4,104,4],[114,26,114,27],[115,26,115,27],[116,26,116,27],[117,26,117,27],[78,26,78,27],[79,26,79,27],[81,26,81,27],[107,26,107,27],[108,26,108,27],[91,26,91,27],[92,26,92,27],[93,26,93,27],[90,26,90,27],[94,26,94,27],[95,26,95,27],[96,26,96,27],[97,26,97,27],[109,26,109,27],[85,26,85,27],[73,26,74,27],[83,26,83,27],[153,3,153,23],[56,4,58,4],[105,4,107,4],[105,3,107,3],[111,3,113,3],[117,3,119,3],[117,4,119,4],[129,3,131,3],[129,4,131,4],[126,3,128,3],[126,4,128,4],[123,3,125,3],[93,3,95,3],[93,4,95,4],[96,4,98,4],[99,4,101,4],[96,3,98,3],[61,13,61,14],[90,4,92,4],[87,3,89,3],[90,3,92,3],[120,3,122,3],[123,4,125,4],[114,3,116,3],[75,1,86,1],[77,26,77,27],[80,26,80,27],[98,26,98,27],[100,26,100,27],[101,26,101,27],[102,26,102,27],[81,3,83,3],[84,3,86,3],[87,1,92,1],[93,1,116,1],[103,26,103,27],[104,26,104,27],[105,26,105,27],[106,26,106,27],[110,26,110,27],[118,26,118,27],[111,26,111,27],[124,26,124,27],[112,26,112,27],[113,26,113,27],[123,26,123,27],[30,18,30,26],[31,18,31,26],[19,3,19,6],[33,4,33,7],[60,16,60,27],[61,16,61,27],[62,16,62,27],[63,16,63,27],[64,16,64,27],[30,11,30,17],[35,11,35,17],[36,11,36,17],[47,3,47,23],[33,11,33,17],[52,13,52,14],[42,11,42,26],[44,11,44,26],[40,18,40,26],[12,3,12,6],[13,3,13,6],[14,3,14,6],[15,3,15,6],[16,3,16,6],[19,7,19,11],[24,7,24,11],[20,7,20,11],[21,7,21,11],[22,7,22,11],[23,7,23,11],[14,7,14,11],[15,7,15,11],[16,7,16,11],[7,3,7,5],[7,6,7,8],[7,9,7,12],[3,4,3,6],[4,4,4,6],[30,4,30,7],[30,8,30,10],[32,4,32,7],[32,8,32,10],[6,3,6,5],[6,6,6,8],[6,9,6,12],[20,3,20,6],[21,3,21,6],[22,3,22,6],[23,3,23,6],[24,3,24,6],[10,3,10,6],[17,3,17,6],[18,3,18,6],[11,7,11,11],[12,7,12,11],[13,7,13,11],[11,3,11,6],[40,11,40,17],[4,8,4,9],[4,10,4,11],[3,8,3,9],[3,10,3,11],[18,7,18,11],[3,17,3,24],[4,17,4,24],[3,13,3,16],[4,13,4,16],[17,7,17,11],[39,18,39,26],[38,18,38,26],[37,18,37,26],[36,18,36,26],[35,18,35,26],[34,18,34,26],[33,18,33,26],[32,18,32,26],[39,11,39,17],[10,7,10,11],[40,4,40,7],[40,8,40,10],[35,4,35,7]]}
[]
[null,"7",null,"Emissions to water - Outlet 1"]
[null,"7.1.1",null,"Monitored point of release "]
[null,null,null,"Identification of the point of release  (as indicated in sheet 3) ","Usual name of the point of release (as mentioned in the permit, flow diagrams, etc.)",null,null,null,"Type of Waste Water Treatment Plant ▼",null,null,null,null,"In case of combined treatment, proportion of waste water from the foundry processes (%)",null,null,null,"In case of combined treatment, origin of other (\"non-foundry\") waste water streams"]
[null,null,null,null,null,null,null,null,"Additional information "]
[]
[null,null,null,"Type of waste water effluents ▼",null,null,"Type of discharge to the environment ▼",null,null,"Additional information"]
[]
[]
[]
[null,"7.1.2",null,"Associated processes with this point of release ▼",null,null,null,"Additional information (e.g. configurations associated with this point of release)"]
[]
[]
[]
[]
[]
[]
[]
[]
[]
[]
[]
[]
[]
[]
[]
[null,"7.2",null,"Information on waste water treatment techniques"]
[]
[null,null,null,"The techniques implemented should be clearly presented in the attached flow diagram (see sheet 3), laying out the flow of waste water streams through the waste water treatment system."]
[]
[null,null,null,null,"Abatement technique ▼",null,null,null,"Major plant upgrades during the reporting reference period",null,null,"Justification/rationale for using this technique or combination of techniques",null,null,null,null,null,null,"Additional information on the abatement technique"]
[null,null,null,1]
[null,null,null,2]
[null,null,null,3]
[null,null,null,4]
[null,null,null,5]
[null,null,null,6]
[null,null,null,7]
[null,null,null,8]
[null,null,null,9]
[null,null,null,10]
[]
[null,null,null,"What are the main factors which influence the design/operation of the waste water treatment plant?"]
[]
[null,null,null,"If there is no waste water treatment system or the generic techniques cannot be applied, please explain why:"]
[]
[null,"7.3",null,"Emissions to water"]
[null,null,null,"The data reported here should refer only to normal operating conditions; data refering to other-than-normal operating conditions, as well as periods when the plant was not operational, should be excluded.\nIf the measured value is below the detection limit, as a minimum, report the detection limit of the measurement method and give information in the corresponding additional information cell (last column).\n\n"]
[]
[]
[null,"7.3.1",null,"Waste water characteristics"]
[]
[null,null,null,"Parameter","Unit","Reference year","Type of sampling ▼","Sampling period (h) (if less than 24-h)","Frequency of measurement ▼","Minimum value of the measurements made during the reference year","Average value of the measurements made during the reference year","Maximum value of the measurements made during the reference year","95th percentile of the measurements made during the reference year","Number of measurements taken during the year considered for the values reported",null,"Standard monitoring method ▼","Additional information"]
[null,null,null,"Flow","m3/day"]
[]
[]
[null,null,null,"Temperature","oC"]
[]
[]
[null,null,null,"pH","-"]
[]
[]
[null,null,null,"Conductivity","μS/cm"]
[]
[]
[]
[]
[]
[]
[]
[]
[]
[null,"7.3.2",null,"Emissions to water"]
[null,null,null,null,null,null,null,null,null,null,null,null,null,null,null,"Contextual monitoring information",null,null,null,null,null,null,null,null,"Load",null,"Additional information"]
[null,null,null,"KEI","Unit ","Reference year","Type of sampling ▼","Sampling period (h) (if less than 24-h)","Frequency of measurement ▼","Minimum value of the measurements made during the reference year","Average value of the measurements made during the reference year","Maximum value of the measurements made during the reference year","95th percentile of the measurements made during the reference year","Number of measurements taken during the year considered for the values reported","Average removal efficiency (%)","Standard monitoring method ▼","Measurement uncertainty (expressed in the same unit as the measurement) ","Has the uncertainty already been taken into account? ▼","Limit of detection","Limit of quantification","Emission limit value (ELV) in the permit (in mg/l)","Emission limit value (ELV) in the permit (in load)","Averaging period for ELVs ▼","Purpose of monitoring ▼","Specific load in g/day","How the specific emission load is calculated? (e.g. using ave/max or min values)"]
[null,null,null,"TOC","mg/l"]
[]
[]
[null,null,null,"COD","mg/l"]
[]
[]
[null,null,null,"TSS","mg/l"]
[]
[]
[null,null,null,"Total N","mg/l"]
[]
[]
[null,"Amines",null,null,"mg/l"]
[]
[]
[null,null,null,null,"mg/l"]
[]
[]
[null,"Metals",null,"As","mg/l"]
[]
[]
[null,null,null,"Cd","mg/l"]
[]
[]
[null,null,null,"Cr","mg/l"]
[]
[]
[null,null,null,"Ni","mg/l"]
[]
[]
[null,null,null,"Pb","mg/l"]
[]
[]
[null,null,null,"Cu","mg/l"]
[]
[]
[null,null,null,"Zn","mg/l"]
[]
[]
[null,null,null,"Hg","mg/l"]
[]
[]
[null,"Other parameters",null,"HOI (Hydrocarbon Oil Index)","mg/l"]
[]
[]
[null,null,null,"Oils/Total hydrocarbons","mg/l"]
[]
[]
[null,null,null,"AOX","mg/l"]
[]
[]
[null,null,null,"Cyanide","mg/l"]
[]
[]
[null,null,null,"Phenols (phenol index)","mg/l"]
[]
[]
[null,null,null,"Cl--","mg/l"]
[]
[]
[null,null,null,"SO42-","mg/l"]
[]
[]
[null,"Any other parameter",null,null,"mg/l"]
[]
[]
[null,null,null,null,"mg/l"]
[]
[]
[null,null,null,null,"mg/l"]
[]
[]
[null,null,null,null,"mg/l"]
[]
[]
[]
[]
[null,null,null,"Comments"]

{"sheet":"8. Noise","index":8,"n_rows":28,"n_cols":6,"rows_kept":28,"cut":false,"hidden":false,"merged":[[27,2,27,6],[28,2,28,6],[3,2,3,6],[4,3,4,6],[5,3,5,6],[6,3,6,6],[7,3,7,6],[8,3,8,6],[22,3,22,4],[22,5,22,6],[23,3,23,4],[23,5,23,6],[24,3,24,4],[24,5,24,6],[19,3,19,4],[19,5,19,6],[9,3,9,6],[10,3,10,6],[11,3,11,6],[25,3,25,4],[25,5,25,6],[20,3,20,4],[20,5,20,6],[21,3,21,4],[21,5,21,6],[13,2,13,6],[14,2,14,6],[17,3,17,4],[17,5,17,6],[18,3,18,4],[18,5,18,6]]}
[]
[null,"8","Noise emissions "]
[]
[null,"8.1","Indicate the foundries processes which are considered the main noise sources"]
[null,null,"Process / point source of noise ▼","Description / additional information"]
[]
[]
[]
[]
[]
[]
[]
[]
[null,"8.2","Any noise monitoring scheme in place (please provide relevant information and if available submit a copy of the results of noise monitoring)"]
[]
[]
[null,"8.3","Noise emissions reduction - applied techniques"]
[null,null,null,"Technique name  ▼",null,"Additional information (e.g. for which noise source this technique is relevant)"]
[null,null,"Applied technique 1"]
[null,null,"Applied technique 2"]
[null,null,"Applied technique 3"]
[null,null,"Applied technique 4"]
[null,null,"Applied technique 5"]
[null,null,"Applied technique 6"]
[null,null,"Applied technique 7"]
[null,null,"Applied technique 8"]
[]
[null,null,"Additional information - Comments (e.g. background noise levels, noisy equipment operation regime)"]

{"sheet":"9. Residues generation","index":9,"n_rows":121,"n_cols":12,"rows_kept":121,"cut":false,"hidden":false,"merged":[[3,5,3,9],[121,3,121,11],[120,3,120,11],[15,1,18,1],[105,5,105,10],[105,4,106,4],[105,11,106,11],[105,3,106,3],[65,5,65,8],[77,1,80,1],[82,1,84,1],[98,5,98,11],[99,5,99,11],[100,5,100,11],[101,5,101,11],[97,3,97,11],[20,1,22,1],[34,5,34,8],[46,1,49,1],[51,1,53,1]]}
[]
[null,"9",null,"Residues generation - FOUNDRIES"]
[]
[null,"9.1.1",null,"Reference year ▼",null,"Specific quantities (in kg/t of liquid metal)"]
[]
[null,null,null,"Residue type","Product type  ▼","Re-use","Recycling","Recovery (other than  recycling)","Disposal","Storing","Additional information (e.g. 6-digit code)","Information on future use "]
[null,null,null,"Slag 1"]
[null,null,null,"Slag 2"]
[null,null,null,"Slag 3"]
[null,null,null,"Dross 1"]
[null,null,null,"Dross 2"]
[null,null,null,"Dross 3"]
[null,null,null,"Refractory lining 1"]
[null,null,null,"Refractory lining 2"]
[null,null,null,"Refractory lining 3"]
[null,"Other residue types"]
[]
[]
[]
[null,null,null,null,"Sand type  ▼","Re-use","Recycling","Recovery (other than  recycling)","Disposal","Storing","Additional information (e.g. 6-digit code)","Information on future use "]
[null,"Spent sand ",null,"Spent sand 1"]
[null,null,null,"Spent sand 2"]
[null,null,null,"Spent sand 3"]
[null,null,null,null,"Point of release ▼","Re-use","Recycling","Recovery (other than  recycling)","Disposal","Storing","Additional information (e.g. 6-digit code)","Information on future use "]
[null,null,null,"Filter dust 1"]
[null,null,null,"Filter dust 2"]
[null,null,null,"Filter dust 3"]
[null,null,null,"Filter dust 4"]
[null,null,null,"Filter dust 5"]
[null,null,null,"Filter dust 6"]
[null,null,null,"Filter dust 7"]
[null,null,null,"Filter dust 8"]
[]
[]
[null,"9.1.2",null,"Reference year ▼",null,"Specific quantities (in kg/t of liquid metal)"]
[]
[null,null,null,"Residue type","Product type  ▼","Re-use","Recycling","Recovery (other than  recycling)","Disposal","Storing","Additional information (e.g. 6-digit code)","Information on future use "]
[null,null,null,"Slag 1"]
[null,null,null,"Slag 2"]
[null,null,null,"Slag 3"]
[null,null,null,"Dross 1"]
[null,null,null,"Dross 2"]
[null,null,null,"Dross 3"]
[null,null,null,"Refractory lining 1"]
[null,null,null,"Refractory lining 2"]
[null,null,null,"Refractory lining 3"]
[null,"Other residue types"]
[]
[]
[]
[null,null,null,null,"Sand type  ▼","Re-use","Recycling","Recovery (other than  recycling)","Disposal","Storing","Additional information (e.g. 6-digit code)","Information on future use "]
[null,"Spend sand ",null,"Spent sand 1"]
[null,null,null,"Spent sand 2"]
[null,null,null,"Spent sand 3"]
[null,null,null,null,"Point of release ▼","Re-use","Recycling","Recovery (other than  recycling)","Disposal","Storing","Additional information (e.g. 6-digit code)","Information on future use "]
[null,null,null,"Filter dust 1"]
[null,null,null,"Filter dust 2"]
[null,null,null,"Filter dust 3"]
[null,null,null,"Filter dust 4"]
[null,null,null,"Filter dust 5"]
[null,null,null,"Filter dust 6"]
[null,null,null,"Filter dust 7"]
[null,null,null,"Filter dust 8"]
[]
[]
[null,"9.1.3",null,"Reference year ▼",null,"Specific quantities (in kg/t of liquid metal)"]
[]
[null,null,null,"Residue type","Product type  ▼","Re-use","Recycling","Recovery (other than  recycling)","Disposal","Storing","Additional information (e.g. 6-digit code)","Information on future use "]
[null,null,null,"Slag 1"]
[null,null,null,"Slag 2"]
[null,null,null,"Slag 3"]
[null,null,null,"Dross 1"]
[null,null,null,"Dross 2"]
[null,null,null,"Dross 3"]
[null,null,null,"Refractory lining 1"]
[null,null,null,"Refractory lining 2"]
[null,null,null,"Refractory lining 3"]
[null,"Other residue types"]
[]
[]
[]
[null,null,null,null,"Sand type  ▼","Re-use","Recycling","Recovery (other than  recycling)","Disposal","Storing","Additional information (e.g. 6-digit code)","Information on future use "]
[null,"Spend sand ",null,"Spent sand 1"]
[null,null,null,"Spent sand 2"]
[null,null,null,"Spent sand 3"]
[null,null,null,null,"Point of release ▼","Re-use","Recycling","Recovery (other than  recycling)","Disposal","Storing","Additional information (e.g. 6-digit code)","Information on future use "]
[null,null,null,"Filter dust 1"]
[null,null,null,"Filter dust 2"]
[null,null,null,"Filter dust 3"]
[null,null,null,"Filter dust 4"]
[null,null,null,"Filter dust 5"]
[null,null,null,"Filter dust 6"]
[null,null,null,"Filter dust 7"]
[null,null,null,"Filter dust 8"]
[]
[]
[]
[null,"9.2",null,"Sand regeneration"]
[null,null,null,"Reference year ▼","Sand regeneration rate (%)","Additional information on regenaration process (e.g. type of sand reclamation/regeneration carried out at the installation) - see also Sections 3.91 and 3.9.2 in worksheet 3 Foundries"]
[]
[]
[]
[]
[null,"9.3",null,"Residues handling and treatment - Applied techniques"]
[]
[null,null,null,null,"Residue type at which this technique applies  based on the residue types for the most recent year (Table 9.1.1) ▼","Applied techniques",null,null,null,null,null,"Additional information on residues characteristics and on applied techniques"]
[null,null,null,null,null,"Applied technique 1 ▼","Applied technique 2 ▼","Applied technique 3 ▼","Applied technique 4 ▼","Applied technique 5 ▼","Applied technique 6 ▼"]
[null,null,null,"Residue type 1  ▼"]
[null,null,null,"Residue type 2  ▼"]
[null,null,null,"Residue type 3  ▼"]
[null,null,null,"Residue type 4  ▼"]
[null,null,null,"Residue type 5  ▼"]
[null,null,null,"Residue type 6  ▼"]
[null,null,null,"Residue type 7  ▼"]
[null,null,null,"Residue type 8  ▼"]
[null,null,null,"Residue type 9  ▼"]
[null,null,null,"Residue type 10  ▼"]
[]
[]
[]
[null,null,null,"Additional information - Comments"]

{"sheet":"Endnotes","index":10,"n_rows":155,"n_cols":6,"rows_kept":155,"cut":false,"hidden":false,"merged":[]}
[null,null,null,null,null,"Copy labels here"]
[null,null,"ENDNOTES",null,null,"COLUMN TO BE HIDDEN"]
[]
[null,null,{"$f":"DropDownMenus!$A$2","v":"0. Introductory notes"}]
[null,{"$f":"SUBSTITUTE(SUBSTITUTE(SUBSTITUTE(F5,\"?\",\"\"),\":\",\"\"),\"▼\",\"\")","v":"Contact person, i.e. person completing the questionnaire (will only be contacted if further information or clarification is necessary)"},"Information on the person completing or checking the questionnaire. This person may be contacted if further information or clarification is needed. This will usually be an employee of the company that is the operator of the installation or a consultant working for the operator of the installation. ",null,null,"Contact person, i.e. person completing the questionnaire: (will only be contacted if further information or clarification is necessary)"]
[]
[null,null,{"$f":"DropDownMenus!$A$3","v":"1. Installation"}]
[null,{"$f":"SUBSTITUTE(SUBSTITUTE(SUBSTITUTE(F8,\"?\",\"\"),\":\",\"\"),\"▼\",\"\")","v":"Name of the installation/plant"},"If several installations are operated by the same company, please provide a different name for every installation, in order to differentiate between the different questionnaires. For each installation a different questionnaire needs to be filled in",null,null,"Name of the installation/plant:"]
[null,{"$f":"SUBSTITUTE(SUBSTITUTE(SUBSTITUTE(F9,\"?\",\"\"),\":\",\"\"),\"▼\",\"\")","v":"Name of the company/operator"},"Name of the company operating the plant. This is the legal entity which holds the environmental permit for the plant and which is named on the permit.",null,null,"Name of the company/operator:"]
[null,"Region","The federal state/region/province where the installation is located. This is MS sensitive and depends on the administrative system. For most of the MS the region may be reported (e.g. Belgium) while for others (e.g. DE) the state may be reported. In case that the questionnaire is submitted by a plant operated in another country, please indicate here the country's name",null,null,"Region:"]
[null,"IED activity indicated in the permit","Specify the IED activity (or activities) indicated in the permit.\n- 2.4. Operation of ferrous metal foundries with a production capacity exceeding 20 tonnes per day\n-2.5. Processing of non-ferrous metals:\n(b) melting, including the alloyage, of non-ferrous metals, including recovered products and operation of non-ferrous metal foundries, with a melting capacity exceeding 4 tonnes per day for lead and cadmium or 20 tonnes per day for all other metals.\nIn case of plants where the above activities are taking place BUT are below the corresponding IED Annex I thresholds (non-IED plants) and operators are willing to submit data via questionnaires, they are welcomed to do so, and TWG will decide on how these data will be taken under consideration. In such a case, please fill in the subtable in the right",null,null,"IED activity indicated in the permit▼"]
[null,"Production capacity (t/year)","Production capacity as determined in the IED permit (i.e. t/day or  t/year). Please define the unit (t/day or  t/year) in the cell on the right.",null,null,"Production capacity (t/year)"]
[null,"IED Annex I point 6.11","Activity for the combined treatment of waste water from different origins if the main pollutant load originates from the activities covered in points 2.4 or 2.5(b) of Annex I to the IED falling under the scope of this BREF and the WWTP is not covered by the Directive 91/271/EEC.",null,null,"IED Annex I point 6.11"]
[null,"E-PRTR code of the plant","National ID of the facility if it has reported to the European Pollutant Release and Transfer Register (http://prtr.ec.europa.eu/).",null,null,"E-PRTR code of the plant"]
[null,"Additional information ","Please provide additional information on production capacity for the selected IED activity (e.g. t of melted (liquid) or delivered metal, metal type for NFM foundries, capacity utilisation). Please note that the term melted / liquid metal\" refers to the liquid metal as output of the melting process while \"delivered metal\" refers to the quantity of metal as inpuit to the melting process",null,null,"Additional information "]
[null,{"$f":"SUBSTITUTE(SUBSTITUTE(SUBSTITUTE(F16,\"?\",\"\"),\":\",\"\"),\"▼\",\"\")","v":"Hyperlink to the permit or permit copy"},"Please provide the hyperlink to the permit (if publicly available) or provide the entire permit or the most important parts of it as an attached file (using the same file name as the one used for your questionnaire and ending '_1' (i.e. CountryCode_OperatorName_InstallationName_Permit.pdf)",null,null,"Hyperlink to the permit or permit copy"]
[null,"Start of operation (year)","Start of operation of the plant according to the IED permit or other permit issued prior to the IED.",null,null,"Start of operation (year):"]
[null,"Name of attached diagram ","Please have a look at the User's manual for examples and further details on the diagrams that need to be provided together with the questionnaire. The naming of the attached files containing diagrams can use the same principles as the naming of the questionnaire file, with additional indicators: e.g. Process flowr. The flow diagram does not need to contain detailed quantitative information, it shall simply contain general information describing the processes used in the plant. In the event that a flow diagram is not available, a process description can be submitted instead. ",null,null,"Name of attached diagram: "]
[null,"Latest retrofits of equipment having a major effect on the environmental performance of the above activities","Information on the equipment used for processes carried out in the installation which has been retrofitted (e.g. new equipment installed, modernised, upgraded, enlarged) in recent years (e.g. during the last 10 years) and has an impact on the environmental performance of the plant. Please provide the year of the actual commissioning of the new/updated equipment in the cell on the right.",null,null,"Latest retrofits of equipment having a major effect on the environmental performance of the above activities"]
[null,"Shifts per day","Please provide the number of shifts per day, e.g. 1 shift/day, 2 shifts/day, 3 shifts/day or 4 shifts/day. If different operation regimes apply in different parts of the process (e.g. different number of shifts in melting shop compared to moulding shop), please provide more information in the additional information cell",null,null,"Shifts per day"]
[null,"List of attached documents","Please provide a full list of all attached documents that accompany the questionnaire (e.g. flow diagrammes)",null,null,"List of attached documents"]
[]
[null,null,{"$f":"DropDownMenus!$A$4","v":"2. Points of release"}]
[null,{"$f":"SUBSTITUTE(SUBSTITUTE(SUBSTITUTE(F24,\"?\",\"\"),\":\",\"\"),\"▼\",\"\")","v":"Emissions to air - Points of release"},"The point where the emissions leave the installation and where the ELV applies (as per Article 15.1 of IED). See the User's Manual for more explanation.",null,null,"Emissions to air - Points of release"]
[null,"Emissions to water - Points of release","The point where the emissions leave the installation and where the ELV applies (as per Article 15.1 of IED). See User's Manual for more explanation.",null,null,"Emissions to water - Points of release"]
[null,"Name of attached diagram","Please have a look at the User's manual for examples and further details on the diagrams that need to be provided together with the questionnaire. The naming of the attached files containing diagrams can use the same principles as the naming of the questionnaire file, with additional indicators: e.g. Emissions to air/water.",null,null,"Name of attached diagram"]
[null,"Total number of monitored points of release","Non-monitored points of release can be shown in the attached diagram. Information on techniques associated to a non-monitored point of release can be provided through the BAT candidate template (worksheet 10) which is available as a stand-alone workbook (and as a doc file) on BATIS.",null,null,"Total number of monitored points of release"]
[null,"Monitored point of release","The points of release are created and named automatically, based on the number of monitored points of release you have indicated.",null,null,"Monitored point of release"]
[null,"Comments","Please clarify, in particular, the reasons why some of the points of release are not monitored.",null,null,"Comments:"]
[]
[]
[null,null,{"$f":"DropDownMenus!$A$5","v":"3. Foundries"}]
[null,{"$f":"SUBSTITUTE(SUBSTITUTE(SUBSTITUTE(F33,\"?\",\"\"),\":\",\"\"),\"▼\",\"\")","v":"Steel foundry type "},"Please select among the following options: Non-alloyed steel (only carbon), low alloyed steel (specify element over 1 % in additional information), high alloyed steel (specify element over 1 % in additional information) and other. Please note that for the purpose of this questionnaire the following definitions apply: Low alloyed steel: in which sum of total Alloying elements is < 8%\nHigh alloyed steel: in which sum of total Alloying elements is > 8%",null,null,"Steel foundry type ▼"]
[null,{"$f":"SUBSTITUTE(SUBSTITUTE(SUBSTITUTE(F34,\"?\",\"\"),\":\",\"\"),\"▼\",\"\")","v":"EUROSTAT prodcom code"},"Additional information on the type of casting, i.e. customer sector, please select from the list below (EUROSTAT PRODCOM product clasification system) ",null,null,"EUROSTAT prodcom code▼"]
[null,"Oxidation control agents","Information on substitution efforts of SF6 by alternative cover gases in magnesium foundries and by alternative degassing agents in aluminium foundries",null,null,"Oxidation control agents"]
[null,{"$f":"SUBSTITUTE(SUBSTITUTE(SUBSTITUTE(F36,\"?\",\"\"),\":\",\"\"),\"▼\",\"\")","v":"Any fluorinated greenhouse gas in use (e.g. SF6, NF3, PFCs)"},"Provide information on any fluorinated gas covered by Regulation 517/2014/EU in use by specifing the exact type of fluorinated gas. This concerns in particular NF3 and Perfluorocarbons (see Annex I and Annex II of Regulation 517/2014/EU. For more information see: REGULATION (EU) No 517/2014 OF THE EUROPEAN PARLIAMENT AND OF THE COUNCIL of 16 April 2014 on fluorinated greenhouse gases and repealing Regulation (EC) No 842/2006 (Official Journal of the European Union L 150/195, 20/5/2014) ",null,null,"Any fluorinated greenhouse gas in use (e.g. SF6, NF3, PFCs)"]
[null,"Type of furnaces and number for each type","Please provide information on the number of furnaces per furnace type (e.g. 2 induction, 3 rotary). In the cells below (which will deploy after filling-in the total number of furnaces in cell D90) please provide the requested detailed information for the 10 furnaces mostly used ",null,null,"Type of furnaces and number for each type"]
[null,"Number of moulding lines (ML)","Please provide the total number of moulding lines irrespectively of their type. For example if at a plant there are 3 types of moulding with 2 lines per type, the total number of moulding lines is 6. ",null,null,"Number of moulding lines (ML)"]
[null,"Additional information (ML)","Please provide information on the number of similar moulding lines.  In the cells below please provide the requested detailed information for the 5 mostly used moulding lines",null,null,"Additional information (ML)"]
[null,"Additional information (CML)","Please provide information on the number of similar core-making lines with the corresponding volumes. In case of similar core shooting machines have the same point of discharge, both will be reported under \"Associated processes with this point of release ▼\" in section 6.1.2 of Worksheet \"Emissions to air\".  In the cells below please provide the requested detailed information for the 5 mostly used core-making lines. ",null,null,"Additional information (CML)"]
[null,"Percentage in total amine mixture (%)","The percentage (%) of the selected amine to the total amine content.",null,null,"Percentage in total amine mixture (%)"]
[null,"FA content (%)","Please provide information on the furfuryl alcohol content (percentage) of the furan binder used expressed as free (monomer) furfuryl alcohol.",null,null,"FA content (%)"]
[null,"Number of coating lines","Please provide the number of coating lines on site. In case of similar coating lines which have the same point of discharge, both will be reported under \"Associated processes with this point of release ▼\" in section 6.1.2 of Worksheet \"Emissions to air\".  ",null,null,"Number of coating lines"]
[null,"Additional information (casting machines)","Please provide information on the number of similar casting machines with the corresponding volumes. In the cells below please provide the requested detailed information for the 3 casting machines which are mostly used",null,null,"Additional information (casting machines)"]
[null,"Number of shake-out lines","Please report the number of shake-out lines. Please note that a shake-out line may consists of one or more shake-out units",null,null,"Number of shake-out lines"]
[]
[null,null,{"$f":"DropDownMenus!$A$6","v":"4. Water-chemic-oil consumption"}]
[null,{"$f":"SUBSTITUTE(SUBSTITUTE(SUBSTITUTE(F48,\"?\",\"\"),\":\",\"\"),\"▼\",\"\")","v":"Reference year "},"Data should be provided for the most recent 3-year reporting period (e.g. concerning years 2019, 2018 and 2017 if available). If values are not or not yet available for these years, data from other recent years may be reported. For the selection of the reporting year period, a drop-down menu is provided (which includes the period from 2019 to 2009). Please start reporting the requested data with the most recent year period. For example if data are available for the year periods 2019, 2016 and 2013 (monitoring once every three years), first report the data for 2019, followed by data for 2016 and then for 2013.",null,null,"Reference year ▼"]
[null,{"$f":"SUBSTITUTE(SUBSTITUTE(SUBSTITUTE(F49,\"?\",\"\"),\":\",\"\"),\"▼\",\"\")","v":"Specific net (fresh) water consumption (m3/tonne of liquid metal)"},"Calculated as a ratio of total amount of water consumed by the process in a reference year to the total amount of liquid metal) in the same reference year.\nWater consumption including e.g. the following uses: \n- Water used in cooling / quenching. If in closed loop systems, only the amounts that need to be replenished due to losses, but not the amounts used in once-through cooling systems;\n- Water used for air emission abatement;\n- Water used for steam boilers;\n- Water used for cleaning equipment/floor.\nNet water consumption is the total amount of water consumed minus the amount of water recycled or reused. See the User's Manual for more details.",null,null,"Specific net (fresh) water consumption (m3/tonne of liquid metal)"]
[null,"Proportion of recycled/reused water in the net (fresh) water consumed (%)","It is calculated based on the following formula:                                                                                             (Recycled or reused water  x 100) / (Net water consumption + recycled or reused water)",null,null,"Proportion of recycled/reused water in the net (fresh) water consumed (%)"]
[null,"Source(s) of fresh water","One or more sources of water should be indicated here (e.g. surface water, water supply network). Recycled or reused water (e.g. rainwater, run-off water, water from the WWTP) should not be indicated here (see endnote for specific water consumption). Proportion of each source of water can be indicated in additional information",null,null,"Source(s) of fresh water"]
[null,"Contextual information related to the reported values","Any information on the specificities of raw materials used, processes applied, products produced, etc, which are related to the reported values",null,null,"Contextual information related to the reported values"]
[null,"Technique name ","In the case you select \"other\" in the drop-down menu, please write the name of the technique in the column \"Additional information\". \nIn the case there is no BAT offered in the drop-down menu, please fill-in the name of the technique, give short decription in the column \"Additional information\". \nIn both mentioned cases please fill in worksheet 10 BAT candidate (which accompanies this questionnaire as a stand-alone workbook and as a word file, if you wish to report more than one BAT candidate). ",null,null,"Technique name ▼"]
[null,"Additional information","Please provide general brief information on what exact process the technique applied and the main elements of its achieved environmental benefits, environmental performance, cross-media effects, economics, etc. If full information is available please fill in the 10-heading template for candidate BAT (see sheet 10: BAT candidate)  which accompanies this questionnaire as a stand-alone workbook.",null,null,"Additional information"]
[null,"Chemical binding system in use ","Please select the chemical binding system in use for the drop-down list. In case of reporting lubricating oils, please indicate the type (and the main components) of it in the additional information.",null,null,"Chemical binding system in use ▼"]
[null,"Percentage","The percentage content of the mentioned chemical, e.g. \nfor resin: the percentage resin content in relation to the sand weight; \nfor catalyst/hardener: the percentage catalyst / hardener content in relation to the resin weight; \nfor additive: the percentage additive content in relation to the sand weight",null,null,"Percentage"]
[null,{"$f":"SUBSTITUTE(SUBSTITUTE(SUBSTITUTE(F57,\"?\",\"\"),\":\",\"\"),\"▼\",\"\")","v":"Associated process(es)"},"The associated process(es) where this chemical system / mould release agent/ lubricating oil is used ",null,null,"Associated process(es)"]
[null,"Purpose of use ","The purpose for which the specific chemical / mould release agent/ lubricating oil is used",null,null,"Purpose of use "]
[null,"Hazard statement (H-phrases - CLP hazard statements) ","The associated hazard statement (based on CLP Regulation (CE) 1272/2008). If more than one hazard statements apply, please report the additional ones in the additional information ",null,null,"Hazard statement (H-phrases - CLP hazard statements) ▼"]
[null,"Release agent / lubricating oil / other chemical used","Please report the product name or the exact type of the release agent, lubricating oil or other chemical (e.g. chemical for skimming) that is used. If available, the corresponding CAS number may be reported",null,null,"Release agent / lubricating oil / other chemical used"]
[]
[null,null,{"$f":"DropDownMenus!$A$7","v":"5. Energy consumption "}]
[null,{"$f":"SUBSTITUTE(SUBSTITUTE(SUBSTITUTE(F63,\"?\",\"\"),\":\",\"\"),\"▼\",\"\")","v":"Reference year "},"Data should be provided for the most recent 3-year reporting period (e.g. concerning years 2019, 2018 and 2017 if available). If values are not or not yet available for these years, data from other recent years may be reported. For the selection of the reporting year period, a drop-down menu is provided (which includes the period from 2019 to 2009). Please start reporting the requested data with the most recent year period. For example if data are available for the year periods 2019, 2016 and 2013 (monitoring once every three years), first report the data for 2019, followed by data for 2016 and then for 2013.",null,null,"Reference year ▼"]
[null,"Specific net energy consumption (kWh/tonne of liquid metal)","This refers to the total net energy consumed by the foundry process(es) (including electricity and heat) minus the energy recovered externally (e.g. in the form of heat). See the User's manual for more details.\nThe ratio is calculated as the net energy consumed during a reference year divided by the amount of liquid metal (liquid metal melted in the furnace) during the same year.\n\nElectricity consumption + Net heat consumption = Net energy consumption",null,null,"Specific net energy consumption (kWh/tonne of liquid metal)"]
[null,"Specific electricity consumption (kWh/tonne of liquid metal)","The ratio is calculated as the electricity consumed by the process during a reference year divided by the amount of liquid metal (liquid metal melted in the furnace) produced during the same year.",null,null,"Specific electricity consumption (kWh/tonne of liquid metal)"]
[null,"Specific net heat (e.g. added steam) consumption (kWh/tonne of liquid metal)","This refers to the total heat consumed by the foundry process(es) (e.g. fosil fuel, coke (based on the calorific value), added steam) minus the heat recovered externally. See the User's manual for more details.\nThe ratio is calculated as the heat consumed during a reference year divided by the amount of liquid metal (liquid metal melted in the furnace) produced during the same year.\n\nNet heat consumption includes the fuel consumption plus any net heat input from outisde the energy boundaries of the foundry installation. ",null,null,"Specific net heat (e.g. added steam) consumption (kWh/tonne of liquid metal)"]
[null,"Proportion of  energy recovered in the total net energy consumed (%)","Its is calculated as:  (Recovered heat  x 100) / (Net heat consumption + Recovered heat)",null,null,"Proportion of  energy recovered in the total net energy consumed (%)"]
[null,"Additional information (overall energy consumption)","Please provide additional information on plant characteristics / specificities related to the reported energy consumption (e.g. plant configuration, system boundaries, operational regime, type of furnace, type of processes and fuels, level of aggregation of consumption data, product types, energy management systems in place)",null,null,"Additional information (overall energy consumption)"]
[null,"Melting ","If the energy consumption for melting, holding and pouring cannot be well-dissociated, then melting  holding and pouring energy consumption are reported together under melting. ",null,null,"Melting "]
[null,"Holding - pouring","If the energy consumption for melting, holding and pouring cannot be well-dissociated, then melting  holding and pouring energy consumption are reported together under melting. ",null,null,"Holding - pouring"]
[null,"Technique name ","In the case you select \"other\" in the drop-down menu, please write the name of the technique in the column \"Comments\". \nIn the case there is no BAT offered in the drop-down menu, please fill-in the name of the technique, give short decription in the column \"Comments\". \nIn both mentioned cases please fill in worksheet 10 BAT candidate (you can copy this worksheet to a separate file to be submitted together with the questionnaire, if you wish to report more than one BAT candidate). ",null,null,"Technique name ▼"]
[null,"Additional information","Please provide general brief information on what exact process the technique applied and the main elements of its achieved environmental benefits, environmental performance, cross-media effects, economics, etc. If full information is available please fill in the 10-heading template for candidate BAT (see sheet 10: BAT candidate) which accompanies this questionnaire as a stand-alone workbook and as a word file.",null,null,"Additional information"]
[]
[null,null,{"$f":"DropDownMenus!$A$8","v":"6. Emissions to air"}]
[null,{"$f":"SUBSTITUTE(SUBSTITUTE(SUBSTITUTE(F75,\"?\",\"\"),\":\",\"\"),\"▼\",\"\")","v":"Abatement technique "},"Please specify the waste gas treatment, before the gas stream is emitted into the air, using the drop-down menu.",null,null,"Abatement technique ▼"]
[null,"Major plant upgrades during the reporting reference period","Please provide information on the major plant upgrades during the reference period of reporting (i.e. the period for the first reference year till the most recent one), with emphasis on any modification / upgrade of the waste gas treatment system. This will allow the assessment of the impact of these changes / updates on the reported levels",null,null,"Major plant upgrades during the reporting reference period"]
[null,{"$f":"SUBSTITUTE(SUBSTITUTE(SUBSTITUTE(F77,\"?\",\"\"),\":\",\"\"),\"▼\",\"\")","v":"Justification/rationale for using this technique or combination of techniques"},"In many cases the main factor will be compliance with emission limit values (ELVs) specified in European or national legislation. Other factors might be, for example: compliance with an ELV which is lower than the value specified in legislation in order to protect a sensitive local habitat.",null,null,"Justification/rationale for using this technique or combination of techniques"]
[null,"Additional information on the abatement technique","In the event that different waste gas streams are channelled to the same point of release via different abatement techniques, please indicate here to which waste gas streams the technique applies (see also Section 3.7 of the questionnaire manual). Please provide general brief information on the efficiency of the applied abatement technique and the main elements of its achieved environmental benefits, environmental performance, cross-media effects, economics, etc. If full information is available please fill in the 10-heading template for candidate BAT (see sheet 10: BAT candidate) which accompanies this questionnaire as a stand-alone workbook and as a word file.",null,null,"Additional information on the abatement technique"]
[null,"If there is no waste gas treatment system or the generic techniques cannot be applied, please explain why","For example, in some cases a waste gas treatment system is not required because the mass flow of the substance is below the minor mass flow limit specified in national legislation. ",null,null,"If there is no waste gas treatment system or the generic techniques cannot be applied, please explain why:"]
[null,"Reference year","Data should be provided for the most recent 3-year reporting period (e.g. concerning years 2019, 2018 and 2017 if available). If values are not or not yet available for these years, data from other recent years may be reported. For the selection of the reporting year period, a drop-down menu is provided (which includes the period from 2019 to 2009). Please start reporting the requested data with the most recent year period. For example if data are available for the year periods 2019, 2016 and 2013 (monitoring once every three years), first report the data for 2019, followed by data for 2016 and then for 2013.",null,null,"Reference year"]
[null,"Sampling period (h)","Indicate the duration of each sample related to the values reported for discontinuous measurements. For example if the reported value corresponds to the average value of three consecutive measurements of 30 minutes each, please report 1.5 hours.",null,null,"Sampling period (h)"]
[null,"Frequency of measurement ","Please specify by using the drop-down menu. The specified time intervals may be regular (e.g. once every month) or irregular. Measurements are usually made using portable equipment  for typically less than 24 h. The data reported here should refer only to the normal operating conditions during the reference year. Although values obtained during other years may also be representative of the current plant operation, please provide only data obtained during the reference year. Since the purpose of this questionnaire is to collect information on plant performance and not on compliance with requirements imposed by the competent authority, please report the shortest term average type which is available at the plant level (e.g. if half hourly averages and daily averages are available, report only half hourly averages, regardless of what is actually reported to the competent authority).",null,null,"Frequency of measurement ▼"]
[null,"Minimum value of the measurements made during the reference year","The data reported here should refer only to normal operating conditions; if possible, data referring to other-than-normal operating conditions, as well as periods when the plant was not operational, should be excluded. \n\nIf the measured value is below the detection limit, as a minimum, report the detection limit of the measurement method and give information in the corresponding additional information cell.",null,null,"Minimum value of the measurements made during the reference year"]
[null,"Average value of the measurements made during the reference year","Except for flow, please indicate values derived as the arithmetic mean of all the values of short-term and long-term averages obtained during the reference years (excluding, if possible, data referring to other than normal operating conditions, as well as periods when the plant was not operational). \n\nFor flow, please indicate the long-term average consistently with the data reported for pollutant concentrations.",null,null,"Average value of the measurements made during the reference year"]
[null,"Maximum value of the measurements made during the reference year","The data reported here should refer only to normal operating conditions; if possible, data referring to other than normal operating conditions, as well as periods when the plant was not operational, should be excluded. If the measured value is below the detection limit, report the detection limit of the measurement method and give information in the corresponding additional information cell.",null,null,"Maximum value of the measurements made during the reference year"]
[null,"95th percentile of the measurements made during the reference year","As part of the validation procedure, the outliers (defined as results which deviate significantly from the other values in a measurement series) should be excluded before reporting the 95th percentiles. Furthermore, since the data reported here should refer only to normal operating conditions, any data referring to other than normal operating conditions, as well as periods when the plant was not operational, should be excluded if possible. If the measured value is below the detection limit report the detection limit of the measurement method in the Comments cell.",null,null,"95th percentile of the measurements made during the reference year"]
[null,"Standard monitoring method ","The published or documented procedure for using the monitoring approach and technique (i.e. analytical principle, such as infrared absorption, chemiluminescence, isokinetic sampling followed by gravimetry, sorbent tube followed by gas chromatography), so that comparable results can be obtained when the monitoring is carried out at different times or by different organisations. Please select, from a drop-down list, the appropriate CEN, ISO or other standard. For further information on monitoring methods see the JRC Reference Report on Monitoring of emissions from IED installations (the ROM) (Published version 07/2018) at eippcb.jrc.ec.europa.eu/reference. In case of parameters with no EN standard available, no drop-down list is provided, please fill in the monitoring standard in use.  It is highly recommended to report the standard monitoring method used. ",null,null,"Standard monitoring method ▼"]
[null,"Measurement uncertainty (expressed in the same unit as the measurement) ","Standard uncertainty as specified in the measurement report. The standard uncertainty is the result of a measurement expressed as a standard deviation (see  ISO 20988:2007).",null,null,"Measurement uncertainty (expressed in the same unit as the measurement) "]
[null,"Has the uncertainty already been taken into account ","Select 'No' if the value reported in this row is obtained directly from the calibrated measurement device.  Otherwise, indicate if the reported values have been calculated by subtracting or adding the uncertainty.",null,null,"Has the uncertainty already been taken into account? ▼"]
[null,"Limit of detection","The limit of detection is the lowest concentration at which the presence of the substance can be confirmed. So if a substance is not detected it may be absent or it may be present at a concentration below the limit of detection. If the measured value is below the detection limit, then the detection limit of the monitoring method should be reported.",null,null,"Limit of detection"]
[null,"Limit of quantification","The limit of quantification is the lowest concentration at which the amount of a substance can be determined with an acceptable level of accuracy and precision. The limit of quantification will always be equal to or higher than the limit of detection. If the measured value is below the quantification limit, then the quantification limit of the monitoring method should be reported.",null,null,"Limit of quantification"]
[null,"Purpose of monitoring ","Please explain the reason for monitoring the substance: e.g. compliance monitoring, operator self-monitoring, operational control, Other regulation (e.g. health and safety).\n",null,null,"Purpose of monitoring ▼"]
[null,"Number of measurements taken during the year considered for the values reported","Please indicate here the number of measurements taken during the year considered (for instance, in the case of weekly measurement, report 52).",null,null,"Number of measurements taken during the year considered for the values reported"]
[null,"Average removal efficiency (%)","Provide the overall removal efficiency of all combined waste gas treatment units. If the waste gas treatment system is only made up of one step, then report the efficiency of this step.",null,null,"Average removal efficiency (%)"]
[null,"O2 content","The O2 percentage (dry basis) in waste gases as measured during the sampling process. ",null,null,"O2 content"]
[null,"O2 level","Reference O2 percentage (dry basis) considered for the reported concentration values, i.e. if reported values are given at a reference O2 level different than this of the measurement (see O2 content above). It is absolutely necessary to report the corresponding O2 level for each data you report.",null,null,"O2 level"]
[null,"Emission limit value (ELV) in the permit (concentration in mg/Nm3)","Please report the emission limit values (ELVs) as set in your permit. Where relevant, please report the ELVs as concentration and/or as mass flow (in the next column).",null,null,"Emission limit value (ELV) in the permit (concentration in mg/Nm3)"]
[null,"Emission load calculation","Please provide information on how the specific emission load is calculated? (e.g. using ave/max or min values)",null,null,"Emission load calculation"]
[null,"Additional information (e.g. ELV as load)","In the event that there is in the IED permit an emission limit value (ELV) expressed as load, please provide the averaging period prescribed in the permit for this ELV (as load)",null,null,"Additional information (e.g. ELV as load)"]
[null,"ouE/Nm3","European Odour Unit (ouE), (see also EN13725)",null,null,"ouE/Nm3"]
[null,"TVOC","Total Volatile Organic Carbon, expressed as C. ",null,null,"TVOC"]
[null,"NOX","The mixture of NO and NO2 expressed as NO2.",null,null,"NOX"]
[null,"SO2","The mixture of SO2 and SO3 expressed as SO2. ",null,null,"SO2"]
[null,"Amines","Please indicate in the cell(s) on the right the exact amine type(s) to which the reported data refer to. ",null,null,"Amines"]
[null,"Phenols","Please indicate in the cell in the right the exact phenol substance or group of phenols to which the reported data refer to. ",null,null,"Phenols"]
[null,"Group of metals","In case data on individual metal/metalloid emissions are not available and only data on group of metals are available, please indicate the metals in the cell in the right",null,null,"Group of metals"]
[null,"Any other parameter","Please report any other parameter you consider important and for which monitoring data are available. You may also use these lines to report parameters for which both continuous and periodic monitoring apply, e.g. if for dust both periodic and continuous monitoring applies, you may use these lines to report the periodic monitoring data assuming that continuous monitoring data have been reported in lines for dust above (lines 81-83). ",null,null,"Any other parameter"]
[]
[null,null,{"$f":"DropDownMenus!$A$9","v":"7. Emissions to water"}]
[null,{"$f":"SUBSTITUTE(SUBSTITUTE(SUBSTITUTE(F110,\"?\",\"\"),\":\",\"\"),\"▼\",\"\")","v":"Type of discharge to the environment "},"The two types of discharge/release are:\ni) direct (the treated effluent is released to the water body - surface or underground)\nii) indirect (the pretreated effluent is released to the sewage leading to the downstream waste water treatment plant which treats the effluent before releasing it to the water body - surface or underground) ",null,null,"Type of discharge to the environment ▼"]
[null,{"$f":"SUBSTITUTE(SUBSTITUTE(SUBSTITUTE(F111,\"?\",\"\"),\":\",\"\"),\"▼\",\"\")","v":"Additional information "},"Please provide information on the capacity of the waste water treatment plant (WWTP) expressed in m3/year or m3/day",null,null,"Additional information "]
[null,"Abatement technique ","Please specify the waste water treatment, before the waste water is discharged, using the drop-down menu.",null,null,"Abatement technique ▼"]
[null,"Major plant upgrades during the reporting reference period","Please provide information on the major plant upgrades during the reference period of reporting (i.e. the period for the first reference year till the most recent one), with emphasis on any modification / upgrade of the waste water treatment system. This will allow to assess the impact of these changes / updates on the reported levels",null,null,"Major plant upgrades during the reporting reference period"]
[null,"Justification/rationale for using this technique or combination of techniques","In many cases the main factor will be compliance with emission limit values (ELVs) specified in European or national legislation. Other factors might be, for example: compliance with an ELV which is lower than the value specified in legislation in order to protect a sensitive local habitat.",null,null,"Justification/rationale for using this technique or combination of techniques"]
[null,"Additional information on the abatement technique","In the event that different waste water streams are channelled to the same point of release via different abatement techniques, please indicate here to which waste water streams the technique applies (see also Section 3.8 of the questionnaire manual). Please provide general brief information on the efficiency of the applied abatement technique and the main elements of its achieved environmental benefits, environmental performance, cross-media effects, economics, etc. If full information is available please fill in the 10-heading template for candidate BAT (see sheet 10: BAT candidate) which accompanies this questionnaire as a stand-alone workbook and as a word file.",null,null,"Additional information on the abatement technique"]
[null,"What are the main factors which influence the design/operation of the waste water treatment plant","In many cases the main factor will be compliance with emission limit values (ELVs) specified in European or national legislation. Other factors might be, for example: compliance with an ELV which is lower than the value specified in legislation in order to protect a sensitive local habitat.",null,null,"What are the main factors which influence the design/operation of the waste water treatment plant?"]
[null,"If there is no waste water treatment system or the generic techniques cannot be applied, please explain why","For example, in some cases a waste water treatment system is not required because there is an indiret discharge and the downstream waste water treatment facility can abate the pollutant load of the waste water effluent. Please provide relevant information. ",null,null,"If there is no waste water treatment system or the generic techniques cannot be applied, please explain why:"]
[null,"Reference year","Data should be provided for the most recent 3-year reporting period (e.g. concerning years 2019, 2018 and 2017 if available). If values are not or not yet available for these years, data from other recent years may be reported. For the selection of the reporting year period, a drop-down menu is provided (which includes the period from 2019 to 2009). Please start reporting the requested data with the most recent year period. For example if data are available for the year periods 2019, 2016 and 2013 (monitoring once every three years), first report the data for 2019, followed by data for 2016 and then for 2013.",null,null,"Reference year"]
[null,"Sampling period (h) (if less than 24-h)","Please indicate here the sampling period, expressed in hours, in the case that the type of sampling is not 24 h -flow proportional. In the case of grab sample, please select \"not applicable\".",null,null,"Sampling period (h) (if less than 24-h)"]
[null,"Frequency of measurement ","Please specify by using the drop-down menu. The specified time intervals may be regular (e.g. once every month) or irregular. Measurements are usually made using portable equipment  for typically less than 24 h. The data reported here should refer only to the normal operating conditions during the reference year. Although values obtained during other years may also be representative of the current plant operation, please provide only data obtained during the reference year. Since the purpose of this questionnaire is to collect information on plant performance and not on compliance with requirements imposed by the competent authority, please report the shortest term average type which is available at the plant level.",null,null,"Frequency of measurement ▼"]
[null,"Minimum value of the measurements made during the reference year","The data reported here should refer only to normal operating conditions; if possible, data referring to other-than-normal operating conditions, as well as periods when the plant was not operational, should be excluded.\n\nIf the measured value is below the detection limit, as a minimum, report the detection limit of the measurement method and give information in the corresponding additional information cell.",null,null,"Minimum value of the measurements made during the reference year"]
[null,"Average value of the measurements made during the reference year","Except for flow, please indicate values derived as the arithmetic mean of all the values of short-term and long-term averages obtained during the reference years (excluding, if possible, data referring to other than normal operating conditions, as well as periods when the plant was not operational).\n\nFor flow, please indicate the long-term average consistently with the data reported for pollutant concentrations.",null,null,"Average value of the measurements made during the reference year"]
[null,"Maximum value of the measurements made during the reference year","The data reported here should refer only to normal operating conditions; if possible, data referring to other-than-normal operating conditions, as well as periods when the plant was not operational, should be excluded.\n\nIf the measured value is below the detection limit, report the detection limit of the measurement method and give information in the corresponding additional information cell.",null,null,"Maximum value of the measurements made during the reference year"]
[null,"95th percentile of the measurements made during the reference year","As part of the validation procedure, the outliers (defined as results which deviate significantly from the other values in a measurement series) should be excluded before reporting the 95th percentiles. Furthermore, since the data reported here should refer only to normal operating conditions, any data refering to other than normal operating conditions, as well as periods when the plant was not operational, should be excluded if possible. If the measured value is below the detection limit report the detection limit of the measurement method in the Comments cell.",null,null,"95th percentile of the measurements made during the reference year"]
[null,"Standard monitoring method ","The published or documented procedure for using the monitoring approach and technique, so that comparable results can be obtained when the monitoring is carried out at different times or by different organisations. Please select, from a drop-down list, the appropriate CEN, ISO or other standard. For further information on monitoring methods see the JRC Reference Report on Monitoring of emissions from IED installations  (the ROM REF) (Published version 07/2018) at eippcb.jrc.ec.europa.eu/reference. In case of parameters with no EN standard available, no drop-down list is provided, please fill in the monitoring standard in use. It is highly recommended to report the standard monitoring method used. ",null,null,"Standard monitoring method ▼"]
[null,"Measurement uncertainty (expressed in the same unit as the measurement) ","If available, the standard uncertainty as specified in the measurement report. The standard uncertainty is the result of a measurement expressed as a standard deviation (see  ISO 20988:2007).",null,null,"Measurement uncertainty (expressed in the same unit as the measurement) "]
[null,"Has the uncertainty already been taken into account ","Select 'No' if the value reported in this row is obtained directly from the calibrated measurement device.  Otherwise, indicate if the reported values have been calculated by subtracting or adding the uncertainty.",null,null,"Has the uncertainty already been taken into account? ▼"]
[null,"Limit of detection","The limit of detection is the lowest concentration at which the presence of the substance can be confirmed. So if a substance is not detected it may be absent or it may be present at a concentration below the limit of detection. If the measured value is below the detection limit, then the detection limit of the monitoring method should be reported.",null,null,"Limit of detection"]
[null,"Limit of quantification","The limit of quantification is the lowest concentration at which the amount of a substance can be determined with an acceptable level of accuracy and precision. The limit of quantification will always be equal to or higher than the limit of detection. If the measured value is below the quantification limit, then the quantification limit of the monitoring method should be reported.",null,null,"Limit of quantification"]
[null,"Purpose of monitoring ","Please explain the reason for monitoring the substance: e.g. compliance monitoring, operator self-monitoring, operational control, Other regulation (e.g. health and safety).",null,null,"Purpose of monitoring ▼"]
[null,"Flow","When continuously monitored, please indicate the long-term average consistently with the data reported for pollutant concentrations.",null,null,"Flow"]
[null,"Average removal efficiency (%)","Provide the overall removal efficiency of all combined waste water treatment units.",null,null,"Average removal efficiency (%)"]
[null,"Emission limit value (ELV) in the permit (in mg/l)","Please report the emission limit values (ELVs) as set in your permit. Where relevant, please report the ELVs as concentration and/or as load (in the next column).",null,null,"Emission limit value (ELV) in the permit (in mg/l)"]
[null,"TOC","Total organic carbon, defined as the concentration of carbon present in the organic matter which is dissolved or suspended in water. ",null,null,"TOC"]
[null,"COD","Chemical oxygen demand, defined as the concentration of oxygen equivalent to the amount of dichromate consumed when a water sample is treated with that oxidant under defined conditions. ",null,null,"COD"]
[null,"TSS","Total suspended solids, defined as the concentration of solids in a liquid usually determined by filtration or centrifuging and then drying all under specified conditions.",null,null,"TSS"]
[null,"Total N","Sum of the concentrations of Kjeldahl, nitrite and nitrate nitrogen, i.e. sum of organic nitrogen, ammoniacal nitrogen, nitrites and nitrates, expressed as N.",null,null,"Total N"]
[null,"Amines","Non-readily biodegradable amines - please define the exact amine type in the cell on the right",null,null,"Amines"]
[null,"HOI (Hydrocarbon Oil Index)","Preferably report data on HOI. Please report the total hydrocarbon value (see cell below) in case that measurement of HOI (hydrocarbon oil index) is not available",null,null,"HOI (Hydrocarbon Oil Index)"]
[null,"Oils/Total hydrocarbons","Please report the total hydrocarbon value in case that measurement of HOI (hydrocarbon oil index) is not available",null,null,"Oils/Total hydrocarbons"]
[null,"AOX","Adsorbable organically bound halogens, expressed as Cl, include adsorbable organically bound chlorine, bromine and iodine.",null,null,"AOX"]
[]
[null,null,{"$f":"DropDownMenus!$A$10","v":"8. Noise"}]
[null,{"$f":"SUBSTITUTE(SUBSTITUTE(SUBSTITUTE(F144,\"?\",\"\"),\":\",\"\"),\"▼\",\"\")","v":""}]
[]
[null,null,{"$f":"DropDownMenus!$A$11","v":"9. Residues generation"}]
[null,{"$f":"SUBSTITUTE(SUBSTITUTE(SUBSTITUTE(F147,\"?\",\"\"),\":\",\"\"),\"▼\",\"\")","v":"Re-use"},"Any operation by which products or components that are not waste are used again for the same purpose for which they were conceived. As examples: Preparation or reclamation of used sands; sand from one foundry is used as sand in another foundry; melting of cutted feeders or internal scrap; slag classified and sold as a by-product.",null,null,"Re-use"]
[null,"Reference year ","Data should be provided for the most recent 3-year reporting period (e.g. concerning years 2019, 2018 and 2017 if available). If values are not or not yet available for these years, data from other recent years may be reported. For the selection of the reporting year period, a drop-down menu is provided (which includes the period from 2019 to 2009). Please start reporting the requested data with the most recent year period. For example if data are available for the year periods 2019, 2016 and 2013 (monitoring once every three years), first report the data for 2019, followed by data for 2016 and then for 2013. Please note that especially for the residue generation reporting, data should refer to year period with typical (representative of average situation) conditions in relation to production / residue generation. Additional information on observed significant fluctuations can be reported in the cell \"Additional information - Comments\" at the end of this worksheet. ",null,null,"Reference year ▼"]
[null,"Recovery (other than  recycling)","Any operation the principal result of which is waste serving a useful purpose by replacing other materials which would otherwise have been used to fulfil a particular function, or waste being prepared to fulfil that function, in the plant or in the wider economy. As examples: energy recovery and the reprocessing of materials that are to be used as fuels (e.g. filter dust as briquettes used as fuel); processing metal-containing dust in metallurgical plants (off-site processes). Please also note that, according to Article 6 (1) and (2) of the Waste Framework Directive 2008/98/EC, certain specified waste shall cease to be waste (end-of-waste) when it has undergone a recovery (including recycling) operation and complies with specific criteria in line with certain legal conditions. For iron, steel and aluminium scrap, the criteria are set in the Council Regulation (EU) No 333/2011 (COUNCIL REGULATION (EU) No 333/2011 of 31 March 2011 establishing criteria determining when certain types of scrap metal cease to be waste under Directive 2008/98/EC of the European Parliament and of the Council, OJ L 94/2/8-4-2011). ",null,null,"Recovery (other than  recycling)"]
[null,"Recycling","Any recovery operation by which waste materials are reprocessed into products, materials or substances whether for the original or other purposes. It includes the reprocessing of organic material but does not include energy recovery and the reprocessing into materials that are to be used as fuels or for backfilling operations. Examples: Aluminium dross used in steel industry; reclamarion of metals from slag or filter dust; spend sand in cement or in brick construction; slag used as construction material (e.g. in road construction).",null,null,"Recycling"]
[null,"Disposal","Any operation which is not recovery even where the operation has as a secondary consequence the reclamation of substances or energy. Examples: slag or filter dust send to a landfill, filter dust sent for destruction.  ",null,null,"Disposal"]
[null,"Storing","Residues that are remained stored on-site or in other areas for future handling",null,null,"Storing"]
[null,"Sand regeneration rate (%)","\nThe general formula for calculating the regeneration percentage is: sand regeneration rate (%) = reused sand / total sand where: reused sand = primary reclaimed sand + secondary regenerated sand - if relevant, and total sand = reused sand + new sand. \nAs an example of primary reclamation / secondary sand regeneration system, the figure 4.25 of the current BREF is attached. Irrespectively of how many times the sand is reused after reclamation (including primary reclamation and possibly secondary regeneration), the requested information is the percentage of reused sand expressed as a percentage of the total sand. For the specific example of attached Figure 4.25 the regenerated rate is 92%. The \"sand regeneration rate\" corresponds to the total reclamation.\n\n\n\n\n\n\n\n\n\n\n\n\n\n\n\n\n\n\n\n\n\n",null,null,"Sand regeneration rate (%)"]
[null,"Information on future use","Please provide information on future use / valorisation of the residue type in the context of circular economy",null,null,"Information on future use"]
[null,"Additional information (e.g. 6-digit code)","Any additional information (e.g. 6-digit code as in the European catalogue of wastes)",null,null,"Additional information (e.g. 6-digit code)"]

{"sheet":"DropDownMenus","index":11,"n_rows":98,"n_cols":65,"rows_kept":98,"cut":false,"hidden":true,"merged":[[0,3,0,4]]}
["Reserved for Endnotes Titles / Worksheet names",{"$f":"+A2","v":"0. Introductory notes"},null,{"$f":"+A5","v":"3. Foundries"}]
["0. Introductory notes","Member States","Column1","Type of discharge","Sampling","Monitoring frequency","Averaging","Purpose","Units","WWTP","Type of Waste Water Treatment Plant","Type of waste water effluents ▼","Waste gas treatment","Monitor cons","Water cons","Energy cons","Chemicals cons","Metal treatment processes","Processes related to emissions to air point","Production capacity unit",null,null,null,null,null,null,null,null,null,null,"Fuel type for furnace","Other_IED_activities","Furnace type - IRON FOUNDRY","Iron foundry type","Product group type - IRON FOUNDRIES","Iron foundries - Input material","Additives for mould-making","Type of sand ▼","Binder types ▼","Hardening process ▼","Resin types ▼","Moulding techniques","Smitheries candidate BATs - PROCESS OPTIMISATION - Resource efficiency","Smitheries candidate BATs - STORAGE / HANDLING RAW MATERIALS","Smitheries candidate BATs - CHANNELLED EMISSIONS TO AIR","Smitheries candidate BATs - DIFFUSE (FUGITIVE) EMISSIONS TO AIR","Smitheries candidate BATs - EMISSIONS TO WATER","Smitheries candidate BATs - NOISE EMISSIONS & VIBRATIONS","Smitheries candidate BATs - ENERGY EFFICIENCY","Smitheries, Hammer type","SMITHERIES Process / point source of noise / vibration","FOUNDRIES candidate BATs - NOISE EMISSIONS ","FOUNDRIES - CASTING METHOD","FOUNDRIES - FINISHING  processes - REMOVAL OF THE RUNNING SYSTEM","FOUNDRIES - FINISHING  processes - SAND REMOVAL","FOUNDRIES - FINISHING  processes - BURRS REMOVAL","FOUNDRIES - SAND REGENERATION - Applied regeneration technique","FOUNDRIES - Residues generation techniques","FOUNDRIES - Residue types","Core making type","Product group type - ALL FOUNDRIES","Sand type","Chemical binding system in use","„Hazardousness” (CLP Hazard statements; H400: Environmental hazards)","Permanent mould - Pattern material ▼"]
["1. Installation","Austria (AT)",null,"Direct discharge to the environment","24-hour flow proportional composite sample","Continuous","daily","Compliance monitoring","mg/l","No technique used","Dedicated WWTP","Batch","No technique used","Measured","Internal recycling of process water","Energy efficiency plan","Minimisation of binder and resin consumption","Argon oxygen decarburization (AOD) ","Melting furnace","t/day",null,null,null,null,null,null,null,null,null,null,"Electric energy","No other IED activity","Cupola (hot blast) HBC furnace","Iron foundry for mass production (serial production with automatic moulding plant - \"machine moulding\")","Grey cast iron (GJL)","Pig iron","Bentonite","Silica sand (quartz)","Bentonite","Cold-setting","Furan, acid","Moulding with natural sand","Computerised management system","Raw materials and auxiliaries classified and stored near the places where they will be used, locations covered and paved.","Capture and treatment of emissions from heating furnaces","Enclosure of production equipment","Minimization of waste water generation in cooling by using closed cooling circuit","Installation of noise walls and utilisation/optimisation of the noise-absorbing effect of buildings","Energy management system in place","Freefall hammer","Cutting","Installation of noise walls and utilisation/optimisation of the noise-absorbing effect of buildings","Tilt pouring","Beating - pressing","Blasting","Grinding wheels",null,"Segregation","Slag","Amine cold-box","Grey iron (GJL)","Core sand","No-bake binder, inorganic ","H400 Very toxic to aquatic life","Wood "]
["2. Points of release","Belgium (BE)",null,"Indirect discharge to a downstream (off-site) industrial WWTP","Flow proportional composite sample","Daily","weekly","Operator self-monitoring","µg/l","Equalisation","Combined waste water treatment with other non-foundry activity","Continuous","Bag filter","Calculated","Use of dry dedusting systems","Process optimisation  (specify in \"additional information\" column)","Minimisation of mould and core sand losses","Vacuum Oxygen Decarburisation converter (VODC)","Metal treatment","t/year",null,null,null,null,null,null,null,null,null,null,"Natural gas","1 Energy industries","Cupola (cold blast) CBC furnace","Iron foundry for large casting (single piece or small batch production – “hand moulding”)","Spheroidal graphite cast iron (SG)","Steel scrap","Clay","Silica sand mixed with feldspar","Clay","Gas-curing","Phenolic, acid","Moulding with clay-bonded sand (wet (green) sand moulding)","Computer-aided design (CAD) system","Storage area for scrap remainings at compartments according to length, on cement-paved floor","Capture and treatment of emissions from hammers","Enclosure of storage areas","Collection and reuse of cooling lubricants","Enclosure or partial enclosure of noisy operations","Automatisation in heating furnace operation","Counterblow hammer","Hammering","Enclosure or partial enclosure of noisy operations","Gravity casting","Grinding with grinding wheels","Other (specify in additional information)","Grinding stones","Mixing of chemically-bonded sands","Crushing","Dross","Hot-box","Spheroidal graphite iron (SG)","Moulding sand","No-bake binder, furane resin","H410 Very toxic to aquatic life with long lasting effects","Plastic"]
["3. Foundries","Bulgaria (BG)",null,"Indirect discharge to a downstream (off-site) urban WWTP","Grab/spot sample","Weekly ","montly","Operational control","Other (specify in additional information)","Neutralisation","IED Annex I 6.11 independently operated WWTP","Other (specify in additional information)","Catalytic oxidation","Other (specify in additional information)","Biological waste gas scrubbers or compost filters","Optimisation of furnace operation","Best practice for cold-setting processes","Deoxidation (specify the type of deoxidant in additional information)","Mould production","other (specify in additional information)",null,null,null,null,null,null,null,null,null,null,"LPG (liquid petroleum gas)","1.1 Energy – Combustion","Electric arc (EAF) furnace","Iron foundry for both: mass production (machine moulding) and large casting production (small batch)","Vermicular cast iron (GJV)","Internal scrap (cast scrap)",null,"Chromite sand","Resins (provide additional information on resin types)","Thermosetting","Polyurethane (phenolic isocyanate)","Moulding with unbonded sand (V-process)","Data collection system for movements of people and materials within the plant ","Storage management: personnel training, distribution of information materials and spaces visible","Capture and treatment of emissions from finishing processes (e.g. blasting)","Capture of off-gases from heating furnaces","Separation of the different types of wastewater","Full enclosure of the smithery building","Improvements in heating system ","Steam hammer","Material transport","Active blowing of air into the foundry hall. This causes a small increase in the indoor pressure and keeps the noise inside","Low-pressure die-casting","Cutting",null,"Slide grinding","Mechanical regeneration of sands","Magnetic separation","Filter dust ","Shell/Croning","Vermicular iron (GJV)","Other (specify in additional information)","No-bake binder, phenolic resin","H411 Toxic to aquatic life with long lasting effects","Metal"]
["4. Water-chemic-oil consumption","Croatia (HR)",null,"No discharge","Not applicable","Monthly","yearly","Other regulation (e.g. health and safety)",null,"Physical separation (e.g. screens, sieves, grit separators, grease separators or primary settlement tanks)","Other (specify in additional information)",null,"Ceramic filter system",null,"Multiple use of treated waste water","Increase in furnace efficiency  (specify in \"additional information\" column)","Best practice for gas-hardened processes","Alloying","Core production",null,null,null,null,null,null,null,null,null,null,null,"Heavy fuel oil","1.2 Energy – Refining of mineral oil and gas","Rotary furnace","Other (specify in additional information)","Malleable cast iron (GJMB/GJMW)","Other scrap",null,"Zircon sand","Coal dust","Other (specify in additional information)","Resol – ester (alkaline phenolic ester hardened)","Moulding with chemically-bonded sand","Computerised management of robots and automations","Other (specify in additional information)","Other (specify in additional information)","Collection and treatment of off-gases from finishing processes","pH and oils/fats monitoring at the outflow of waste water","Use of anti-vibration bases for vibrating equipment","Energy efficient lighting","Double acting hammer","Other (specify in additional information)","Noise management measures (e.g. improved inspection and maintenance of equipment, closing of doors and windows)","High-pressure die-casting","Sawing",null,"Tumbling","Thermal regeneration of sands","Filter press","Refractory linings","CO2-silicate","Malleable Cast iron (GJMB/GJMW)",null,"No-bake binder, phenolic-isocyanate resin","H412 Harmful to aquatic life with long lasting effects","Other (e.g. polystyrene, wax, specify in additional information)"]
["5. Energy consumption ","Cyprus (CY)",null,null,"Other or more than one type (specify in \"additional information\" column)","4 times per year","Other (please specify in \"additional information\")","Other (specify in additional information)",null,"Activated sludge process",null,null,"Condensation",null,"Use of waste heat for the evaporation of waste water","Change from mains frequency to medium frequency furnaces","Replacement of alcohol-based coatings with water-based coatings","Homogenisation","Pouring",null,null,null,null,null,null,null,null,null,null,null,"Diesel","1.3 Energy – Production of coke","Induction furnace",null,"Austenitic cast iron (GJLA/GJSA-X)","Coke",null,"Olivine sand","Cereal binders",null,"Alkyd oil, unbaked","Expendable pattern casting (lost foam process)","Centralised power system for coolant that reduces intermediate storage and consumption, facilitates detection of losses",null,null,"Cooling line encapsulation","Other (specify in additional information)","Noise management measures (e.g. improved inspection and maintenance of equipment, closing of doors and windows)","Computer-based control of power consumption in critical points in the production process.","Other (please specify in additional information)",null,"Noise reduction measures for fans and ventilation pipes (e.g. enclosing, using silencers, slow rotating fans, sound insulation, using of dampers)","Centrifugal casting","Other (specify in additional information)",null,"Blast removal","Other (specify in additional information)","Drying","Spent sand externally used or sent for disposal","Other (specify in additional information)","Austenitic cast iron (GJLA/GJSA-X)",null,"Shell moulding, Croning process","H413 May cause long lasting harmful effects to aquatic life"]
["6. Emissions to air","Czech Republic (CZ)",null,null,null,"Twice per year",null,null,null,"Membrane bioreactor",null,null,"Cyclonic separation",null,"Prevention of waste water from scrap storage","Power generation from waste heat (e.g. steam turbines, Organic Rankine Cycle technology)","Use of non-aromatic solvents for cold-box core production","Desulphurisation and recarburisation","Cooling",null,null,null,null,null,null,null,null,null,null,null,"Coal ","1.4a Energy – Gasification/liquefaction of coal","Medium frequency crucible induction furnace",null,"Wear-resistance cast iron (GJN)","Fluxing agents",null,"Synthetic sand","Iron oxide",null,"Ester silicate","Lost foam process with chemically-bonded sand","Reuse / recycle of process residues ",null,null,"Reduce fugitive emissions from material handling",null,"Noise reduction measures for fans (e.g. using silencers, slow rotating fans)","Other (specify in additional information)",null,null,"Full enclosure of the foundry building","Continuous casting",null,null,"Punching (automated lines)",null,"Granulation","Regenerated sand (%)",null,"Wear-resistance cast iron (GJN)",null,"Inorganic binder, curing with CO2 or heat ","Other (specify in additional information)"]
["7. Emissions to water","Denmark (DK)",null,null,null,"Yearly",null,null,null,"Chemical precipitation",null,null,"Venturi scrubber",null,"Keep water types separate","Use of oxyburner","Minimisation of release agent and water consumption in permanent moulding","Nodularisation (provide details for the exact technique used in additional information)","Shake-out",null,null,null,null,null,null,null,null,null,null,null,"Coke","1.4b Energy – Gasification/liquefaction of other fuels","Net/mains frequency crucible induction furnace","Steel foundry type","White cast iron","Slagging agents",null,"Other (specify in additional information)","Other (specify in additional information)",null,"Cement","Other (specify in additional information)","System for collecting and recirculating coolant.",null,null,"Other (specify in additional information)",null,"Avoidance of noisy activities (e.g. transport) during night period",null,null,null,"Avoidance of noisy activities (e.g. transport) during night period","Other (specify in additional information)",null,null,"Milling (automated lines)",null,"Other (specify in additional information)","Other (specify in additional information)",null,"White cast iron",null,"Urethane Cold Box process, curing with amine "]
["8. Noise","Estonia (EE)",null,null,null,"Once every 3 years",null,null,null,"Coagulation and flocculation",null,null,"Dry lime injection",null,"Separate spraying of release agent and water in aluminium die-casting","Waste heat utilisation from induction furnaces","Closed-mould application of release agent","Inoculation of the melt","Heat treatment",null,null,null,null,null,null,null,null,null,null,null,"Biogas","2 Production and processing of metals","Shaft furnace","Steel casting foundry","Austempered ductile cast iron (ADI)","Other (specify in additional information)",null,null,null,null,"Cold-box (amine hardened phenolic urethane)",null,"Use of material-efficient equipment",null,null,null,null,"Other (specify in additional information)",null,null,null,"Other (specify in additional information)",null,null,null,"Other (specify in additional information)",null,null,null,null,"Austempered Ductile Iron (ADI)",null,"Resole-CO2 process, curing with CO2"]
["9. Residues generation","Finland (FI)",null,null,null,"Other (specify in additional information)",null,null,null,"Sedimentation",null,null,"Dry scrubber system",null,"Other (specify in additional information)","Waste heat utilisation from cupola furnaces","Improvement of metal yield","Degassing","Sand preparation",null,null,null,null,null,null,null,null,null,null,null,"Bio-mix","2.1 Metals – Metal ore roasting/sintering","Crucible furnace","Other (specify in additional information)","Other (specify in additional information)",null,null,null,null,null,"Resol – ester (alkaline phenolics methyl formate hardened)",null,"Use of energy-efficient equipment",null,null,null,null,null,null,null,null,null,null,null,null,null,null,null,null,null,"Alloyed steel",null,"Methyl formate process, curing with methyl formate"]
[null,"France (FR)",null,null,null,"Not-meassured",null,null,null,"Filtration (e.g. sand filtration, microfiltration, ultrafiltration)",null,null,"Electrostatic precipitatation (ESP) - wet ",null,null,"Reduce energy losses/improve preheating practice of ladles  (specify in \"additional information\" column)","Other (specify in additional information)","Modification and grain refining","Sand regeneration",null,null,null,null,null,null,null,null,null,null,null,"Biodiesel","2.2 Metals – Production of pig iron or steel","Reverberatory (hearth) furnace",null,null,null,null,null,null,null,"Resol-CO2",null,"Other (specify in additional information)",null,null,null,null,null,null,"Smitheries, thermal processes",null,null,null,null,null,null,null,null,null,null,"Non-alloyed steel",null,"SO2 process, curing with SO2"]
[null,"Germany (DE)",null,null,null,null,null,null,null,"Flotation",null,null,"Electrostatic precipitation (ESP) - dry",null,null,"Minimisation of mould and sand losses",null,"Fluxing","Finishing processes",null,null,null,null,null,null,null,null,null,null,null,"Biomass solid (e.g. charcoal)","2.3a Metals – Processing of ferrous metals – Hot-rolling mills","Resistance furnace",null,null,null,null,null,null,null,"SO2 hardened furan resins",null,null,null,null,null,null,null,null,"Preheating  ",null,null,null,null,null,null,null,null,null,null,"Aluminium castings",null,"Warm-Box/Hot-Box process, with furan resin"]
[null,"Greece (EL)",null,null,null,null,null,null,null,"Evaporator",null,null,"Low-NOx burners",null,null,"Reduction of scrap generation (increase of operational material efficiency (OME)) ",null,"Oxidation control","Remelting",null,null,null,null,null,null,null,null,null,null,null,"Other (specify in additional information)","2.3b Metals – Processing of ferrous metals – Smitheries","Other (specify in additional information)",null,null,null,null,null,null,null,"SO2 hardened epoxy/acrylic (free radical curing)",null,null,null,null,null,null,null,null,"Post heat treatment  ",null,null,null,null,null,null,null,null,null,null,"Magnesium castings",null,"Warm-Box/Hot-Box process, with phenolic resin"]
[null,"Hungary (HU)",null,null,null,null,null,null,null,"Other (specify in additional information)",null,null,"Membrane separation",null,"Avoidance of AOX formation in waste water","Use of porous burner",null,"Other (specify in additional information)","Storage of chemicals / raw materials",null,null,null,null,null,null,null,null,null,null,null,null,"2.3c Metals – Processing of ferrous metals – Protective fused metal coating",null,null,null,null,null,null,null,null,"CO2 hardened sodium silicate (water glass)",null,null,null,null,null,null,null,null,"Outsourcing ",null,null,null,null,null,null,null,null,null,null,"Copper castings",null,"Other (specify in additional information)"]
[null,"Ireland (IE)",null,null,null,null,null,null,null,null,null,null,"Photo/UV oxidation",null,null,"Improvement of metal yield",null,null,"Preparation /  mixing of chemicals / raw materials used",null,null,null,null,null,null,null,null,null,null,null,null,"2.4 Metals – Ferrous metal foundries",null,null,null,null,null,null,null,null,"CO2 hardened alkaline phenolic",null,null,null,null,null,null,null,null,"Steam generation ",null,null,null,null,null,null,"FOUNDRIES - SAND Secondary sand reclamation  - Applied techniques",null,null,null,"Zinc castings"]
[null,"Italy (IT)",null,null,null,null,null,null,null,null,null,null,"Recuperative catalytic oxidation",null,null,"Other (specify in additional information)","Lost Foam casting",null,"Other (specify in additional information)",null,null,null,null,null,null,null,null,null,null,null,null,"2.5a Metals – Processing of non-ferrous metals – Production of non-ferrous crude metals",null,null,null,null,null,null,null,null,"Hot-box, phenolic and/or furan based",null,null,null,null,null,null,null,null,"Other (specify in additional information)",null,null,null,"FOUNDRIES - shake out","FOUNDRIES - water streams","FOUNDRIES - SAND PREPARATION including primary reclamation - Applied preparation technique","Cold mechanical regeneration using a grinding wheel unit","Regeneration of green sand under optimised conditions (primary regeneration)",null,null,"Lead castings"]
[null,"Latvia (LV)",null,null,null,null,null,null,null,null,null,null,"Recuperative thermal oxidation",null,null,null,"Ceramic shell moulding",null,null,null,null,null,null,null,null,null,null,null,null,null,null,"2.5b Metals – Processing of non-ferrous metals – Melting, including the alloyage, of non-ferrous metals",null,null,"Product group type - STEEL FOUNDRIES","Steel foundries - Input material","Associated process for emissions to water","STEEL FOUNDRY type",null,null,"Warm-box",null,null,null,null,null,null,null,null,null,null,null,null,"Vibration","Cupola furnace wet scrubbing","Vibration reclamation","Thermal regeneration","Simple mechanical regeneration of cold-setting sand",null,null,"Bronze castings"]
[null,"Lithuania (LT)",null,null,null,null,null,null,null,null,null,null,"Regenerative catalytic oxidation",null,null,null,null,null,null,null,null,null,null,null,null,null,null,null,null,null,null,"2.6 Metals – Surface treatment of metals or plastic materials",null,"Non-ferrous foundry type","Alloyed steel","Pig iron","die-casting","Unalloyed steel ",null,null,"Shell (Croning)",null,null,null,null,null,null,null,null,null,null,"FOUNDRIES relevant processes for NOISE EMISSIONS ",null,"Other (specify in additional information)","High-pressure die-casting","Cold mechanical regeneration using a pneumatic system","Combined regeneration (mechanical - thermal - mechanical) for mixed organic-bentonite sands","Cold mechanical regeneration using an impact drum",null,null,"Brass castings"]
[null,"Luxembourg (LU)",null,null,null,null,null,null,null,null,null,null,"Regenerative thermal oxidation",null,null,null,null,null,null,null,null,null,null,null,null,null,null,null,null,null,null,"3 Mineral industry","Furnace type - STEEL FOUNDRY","High pressure die-casting ","Non-alloyed steel","Steel scrap","wet flue-gas treatment systems","Low alloyed steel",null,null,"Linseed oil",null,null,null,null,null,null,null,null,null,null,"Scrap handling",null,null,"Wet scrubbing for core-making using SO2 process","Cold mechanical regeneration using an impact drum","Wet sand regeneration","Cold mechanical regeneration using a pneumatic system",null,null,"Other (specify in additional information)"]
[null,"Malta (MT)",null,null,null,null,null,null,null,null,null,null,"Sorbent injection",null,"Other",null,null,null,null,null,null,null,null,null,null,null,null,null,null,null,null,"3.1a Mineral – Production – Cement clinker","Electric Arc - EAF - acidic lined","Gravity die casting and tilt casting","Other (specify in additional information)","Alloying elements","heat treatment","High alloyed steel ",null,null,"Alkyd oil, baked",null,null,null,null,null,null,null,null,null,null,"Furnace charging",null,null,"Wet scrubbing for croning mould / core-making","Simple mechanical regeneration of cold-setting sand","Other (specify in additional information)","Regeneration of water glass sand using pneumatic systems"]
[null,"Netherlands  (NL)",null,null,null,null,null,null,null,null,null,null,"Thermal oxidation (without thermal recovery)",null,null,null,null,null,null,null,null,null,null,null,null,null,null,null,null,null,"Furnace associated process","3.1b Mineral – Production – Lime","Electric Arc - EAF - basic lined","Low-pressure die-casting ",null,"Internal scrap","surface run-off water from storage","Other (e.g. Ni-based (super)alloys etc.))",null,null,"Other (specify in additional information)",null,null,null,null,null,null,null,null,null,null,"Burners",null,null,"Moulding with wet sand","Sand cooling "]
[null,"Norway (NO)",null,null,null,null,null,null,null,null,null,null,"Water scrubber system",null,null,null,null,null,null,null,null,null,null,null,null,null,null,null,null,null,"Melting","3.1c Mineral – Production – Magnesium oxide","Induction furnace (electric coreless)","Centrifugal casting ",null,"Other scrap","direct cooling",null,null,null,null,null,null,null,null,null,null,null,null,null,null,"HPDC automates",null,null,"Wet scruccing for cold-box mould / core-making","Mixing process"]
[null,"Poland (PL)",null,null,null,null,null,null,null,null,null,null,"Other (specify in additional information)",null,null,null,null,null,null,null,null,null,null,null,null,null,null,null,null,null,"Holding","3.2 Mineral – Production of asbestos","Other (specify in additional information)","Continuous casting",null,"Deoxidation agents","wet sand regeneration ",null,null,null,null,null,null,null,null,null,null,null,null,null,null,"Shake-out",null,null,"Wet treatment of used sand","Other (specify in additional information)"]
[null,"Portugal (PT)",null,null,null,null,null,null,null,null,null,null,null,null,null,null,null,null,null,null,null,null,null,null,null,null,null,null,null,null,"Remelting","3.3 Mineral – Manufacture of glass",null,"Other (specify in additional information)",null,"Fluxing agents","cupola furnace slag granulation",null,null,null,null,null,null,null,null,null,null,null,null,null,null,"Grit-blasting",null,null,"Finishing processes (machining)"]
[null,"Romania (RO)",null,null,null,null,null,null,null,null,null,null,null,null,null,null,null,null,null,null,null,null,null,null,null,null,null,null,null,null,"Mould-core drying","3.4 Mineral – Melting mineral substances",null,null,null,"Slagging agents","Other (specify in additional information) ",null,null,null,null,null,null,null,null,null,null,null,null,null,null,"Core (and mould) shooting",null,null,"Other (specify in additional information)"]
[null,"Slovakia (SK)",null,null,null,null,null,null,null,null,null,null,null,null,null,null,null,null,null,null,null,null,null,null,null,null,null,null,null,null,"Heat treatment","3.5 Mineral – Manufacture of ceramic products",null,null,null,"Other (specify in additional information) ",null,null,null,null,null,null,null,null,null,null,null,null,null,null,null,"Finishing"]
[null,"Slovenia (SI)",null,null,null,null,null,null,null,null,null,null,null,null,null,null,null,null,null,null,null,null,null,null,null,null,null,null,null,null,"Thermal sand regeneration","4 Chemical industry",null,null,null,null,null,null,null,null,null,null,null,null,null,null,null,null,null,null,null,"All motors and hydraulic systems"]
[null,"Spain (ES)",null,null,null,null,null,null,null,null,null,null,null,null,null,null,null,null,null,null,null,null,null,null,null,null,null,null,null,null,"Preheating","4.1a Chemical – Production of organic chemicals – Simple hydrocarbons",null,null,"Applied tretament processes for cast iron","Applied processes for nodularisation of cast iron","Applied refining processes for steel casting ","Applied tretament processes for non-ferrous castings","FLUXING agents used in  non-ferrous castings treatment","DEGASSING agents used in  non-ferrous castings treatment","Grain refining and modification agent(s) used ▼","Oxidation control agent(s) used ▼",null,null,null,null,null,null,null,null,null,"Transport (tipping, loading, etc.)"]
[null,"Sweden (SE)",null,null,null,null,null,null,null,null,null,null,null,null,null,null,null,null,null,null,null,null,null,null,null,null,null,null,null,null,"Ladle heating","4.1b Chemical – Production of organic chemicals – Oxygen-containing hydrocarbons",null,"Product group type - NON-FERROUS FOUNDRIES","Alloying - homogenisation","Pour over technique","AOD converter (Argon-Oxygen decarbusiration)","Al-degassing / cleaning","Fluoride-based fluxing agents","N2-Cl2","Na","SF6","FOUNDRIES candidate BATs - STORAGE / HANDLING RAW MATERIALS","Raw materials for core-making ▼","Amine types for cold box technique","Associated process for emissions to air","Associated process for emissions to air",null,null,"YEARS","Residues types","Air flow equipments (eg. ventilation)"]
[null,"United Kingdom (UK)",null,null,null,null,null,null,null,null,null,null,null,null,null,null,null,null,null,null,null,null,null,null,null,null,null,null,null,null,"Drying","4.1c Chemical – Production of organic chemicals – Sulphurous hydrocarbons","Furnace type - NON FERROUS FOUNDRY","Aluminium castings","Homogenisation","Sandwich method","VODC (Vacuum oxygen decarburisation converter)","Al-modification and grain refining","Alkali fluxing agents","Ar-Cl2","Sr","SO2","Covered storage and impermeable scrap yard","Silica sand","DMEA","PA1","Furnace 1","Cooling methods",null,2019,"Slag 1","Other (specify in additional information)"]
[null,"Other country  (specify in the cell region below)",null,null,null,null,null,null,null,null,null,null,null,null,null,null,null,null,null,null,null,null,null,null,null,null,null,null,null,null,"Premises' heating","4.1d Chemical – Production of organic chemicals – Nitrogenous hydrocarbons","Electric arc (EAF)","Magnesium castings","Desulphurisation and recarburisation","Tundish Cover method","Deoxidation (if not occur in the furnace)","Al-fluxing","Alkaline earth fluxing agents","Pure N2 (tablets or gas)","Ti","Pure N2","Storage measures for binder chemicals (e.g. roofed and ventilated area, collection of spills)","Olivine sand (magnesium iron silicate)","DMPA","PA2","Furnace 2","Ambient cooling",null,2018,"Slag 2",null,null,null,null,"Magnetic iron separation"]
[null,null,null,null,null,null,null,null,null,null,null,null,null,null,null,null,null,null,null,null,null,null,null,null,null,null,null,null,null,null,"Other (specify in additional information)","4.1e Chemical – Production of organic chemicals – Phosphorus-containing hydrocarbons","Rotary","Copper castings","Nodularisation","Plunging method","Other (specify in additional information)","Mg-grain modification","Chloride-based fluxing agents","Fluoride-based oxidation agents","TiB2","Other (specify in additional information)","Use of clean scrap for melting and removal of sand from the return material","Zircon sand","DMIPA","PA3","Furnace 3","Forced air-cooling",null,2017,"Slag 3",null,null,null,null,"Eddy current separation"]
[null,null,null,null,null,null,null,null,null,null,null,null,null,null,null,null,null,null,null,null,null,null,null,null,null,null,null,null,null,null,null,"4.1f Chemical – Production of organic chemicals – Halogenic hydrocarbons","Induction","Zinc castings","Inoculation","G Fischer converter method",null,"Mg-degassing","Other (specify in additional information)","Carbonate-based oxidation agents","ZrSiO₄",null,"Internal recycling of scrap ferrous metal","Chromite sand","TEA","PA4","Furnace 4","Quenching (water)",null,2016,"Dross 1",null,null,null,null,"Breaking of residual sand lumps"]
["COD","TOC","TSS","TN","TP","BOD","NH4-N","Cl","Sulphate","Zn","AOX","Sulphide",null,null,"How the OME value is derived","Applied techniques to improve OME",null,null,null,null,null,null,null,null,null,null,null,null,null,null,null,"4.1g Chemical – Production of organic chemicals – Organometallic compounds","Shaft","Lead castings","Other (specify in additional information)","Core wire injection",null,"Mg-fluxing",null,"Other (specify in additional information)","Zr",null,"Internal recycling of magnesium scrap","Other (specify in additional information)","TMA","PA5","Furnace 5","Quenching (oil)",null,2015,"Dross 2"]
["ISO 15705","EN 1484","EN 872","EN 12260","EN ISO 6878","EN 1899","EN ISO 11732","EN ISO 15682","ISO 22743","EN ISO 11885","EN ISO 9562","ISO 10530",null,null,"Measured (weighed)","Proper design of runners, risers, ingates, pouring basin and optimised box yield (castings/metal poured in a mould), e.g. by using CAD (computer-aided design) tools",null,null,null,null,null,null,null,null,null,null,null,null,null,null," FOUNDRIES - Pattern making material","4.1h Chemical – Production of organic chemicals – Plastic materials","Crucible","Bronze castings",null,"Inmold process",null,"Mg-oxidation control",null,null,"C",null,"Recycling of used containers and/or use of large size containers",null,"Other (specify in additional information)","PA6","Furnace 6","Other (specify in additional information)",null,2014,"Dross 3",null,null,null,null,"Sand screening",null,null,null,null,null,null,"Warm-Box/Hot-Box process, with phenolic resin"]
["ISO 6060","Other (specify in additional information)","Other (specify in additional information)","EN ISO 11905-1","EN ISO 15681","ISO 5815","ISO 5664","ISO 9297","Other (specify in additional information)","EN ISO 15586","Other (specify in additional information)","ISO 13358",null,null,"Calculated / estimated","Applying good procedures in melting and pouring operations to reduce melting losses, excessive pigging, scrap rates, etc",null,null,null,null,null,null,null,null,null,null,null,null,null,null,"Permanent metal patterns (aluminium, steel)","4.1i Chemical – Production of organic chemicals – Synthetic rubbers","Reverberatory (Hearth)","Brass castings",null,"Flow through treatment method",null,"Pure N2-degassing",null,null,"Other (specify in additional information)",null,"Other (specify in additional information)",null,null,"PA7","Furnace 7",null,null,2013,"Refractory lining 1",null,null,null,null,null,null,null,null,null,null,null,"Ohers (specify in additional information)"]
["Other (specify in additional information)",null,null,"ISO 29441","EN ISO 11885","Other (specify in additional information)","ISO 6778","Other (specify in additional information)",null,"EN ISO 17294-2",null,"Other (specify in additional information)",null,null,"Other (specify in additional information)","Applying good practices in moulding and core-making to reduce scrap generation due to deficiencies ",null,null,null,null,null,null,null,null,null,null,null,null,null,null,"Permanent wood pattern","4.1j Chemical – Production of organic chemicals – Dyes and pigments","Resistance ","Other (specify in additional information)",null,"Ductilator method",null,"Cu-degassing",null,null,null,null,null,null,null,"PA8","Furnace 8",null,null,2012,"Refractory lining 2"]
[null,null,null,"Other (specify in additional information)","Other (specify in additional information)",null,"ISO 7150",null,null,"Other (specify in additional information)",null,null,null,null,null,"Other (specify in additional information)",null,null,null,null,null,null,null,null,null,null,null,null,null,null,"Permanent polymer patterns  ","4.1k Chemical – Production of organic chemicals – Surface-active agents and surfactants","Other (specify in additional information)",null,null,"Other (specify in additional information)",null,"Cu-fluxing",null,null,null,null,null,null,null,"PA9","Furnace 9",null,null,2011,"Refractory lining 3"]
[null,null,null,null,null,null,"Other (specify in additional information)",null,null,null,null,null,"SOX",null,null,null,null,null,null,null,null,null,null,null,null,null,null,null,null,null,"Evaporative patterns (EPS, EPMMA)","4.2a Chemical – Production of inorganic chemicals – Gases, such as ammonia, chlorine or hydrogen chloride, fluorine or hydrogen fluoride, carbon oxides, sulphur compounds, nitrogen oxides, hydrogen, sulphur dioxide, carbonyl chloride",null,null,null,null,null,"Cu-deoxidation",null,null,null,null,null,null,null,"PA10","Furnace 10",null,null,2010,"Spent sand 1"]
[null,null,null,null,null,null,null,null,null,null,null,null,"EN 14791",null,null,null,null,null,null,null,null,null,null,null,null,null,null,null,null,null,"Melted wax patterns (investment castings)","4.2b Chemical – Production of inorganic chemicals – Acids, such as chromic acid, hydrofluoric acid, phosphoric acid, nitric acid, hydrochloric acid, sulphuric acid, oleum, sulphurous acids",null,null,null,null,null,"Other (specify in additional information)",null,null,null,null,null,null,null,"PA11","Pattern making",null,null,2009,"Spent sand 2"]
[null,"Odour","Dust","NH3","TVOC","CO",null,"HF","Units dioxins","Metals","NOX","H2S","Other (specify in additional information)",null,null,null,null,null,null,null,null,null,null,null,null,null,null,null,null,null,"Other (specify in additional information)","4.2c Chemical – Production of inorganic chemicals – Bases, such as ammonium hydroxide, potassium hydroxide, sodium hydroxide",null,null,null,null,null,null,null,null,null,null,null,null,null,"PA12","Moulding line 1",null,null,null,"Spent sand 3"]
[null,"EN 13725","EN 13284-1","VDI 3878","EN 12619","EN 15058",null,"ISO 15713","ng WHO-TEQ/Nm3","EN 14385","EN 14792","Other (specify in additional information)",null,null,null,null,null,null,null,null,null,null,null,null,null,null,null,null,null,null,null,"4.2d Chemical – Production of inorganic chemicals – Salts, such as ammonium chloride, potassium chlorate, potassium carbonate, sodium carbonate, perborate, silver nitrate",null,null,null,null,null,null,null,null,null,null,null,null,null,"PA13","Moulding line 2",null,null,null,"Filter dust 1"]
[null,"Other (specify in additional information)","Other (specify in additional information)","UNICHIM 632","EN ISO 13199","Other (specify in additional information)",null,"Other (specify in additional information)","ng I-TEQ/Nm3","Other (specify in additional information)","Other (specify in additional information)","No EN or ISO standard available",null,null,null,null,null,null,null,null,null,null,null,null,null,null,null,null,null,null,null,"4.2e Chemical – Production of inorganic chemicals – Non-metals, metal oxides or other inorganic compounds such as calcium carbide, silicon, silicon carbide",null,null,null,null,null,null,null,null,null,null,null,null,null,"PA14","Moulding line 3","Associated process for emissions to water",null,null,"Filter dust 2"]
[null,null,null,"NF X43-303","Other (specify in additional information)",null,"HCl",null,null,null,null,null,"PAHs",null,null,null,null,null,null,null,null,null,null,null,null,null,null,null,null,null,null,"4.3 Chemical – Production of phosphorous-, nitrogen- or potassium-based fertilisers",null,null,null,null,null,null,null,null,null,null,null,null,null,"PA15","Moulding line 4","Die-casting",null,null,"Filter dust 3"]
[null,null,null,"Other (specify in additional information)",null,null,"EN 1911",null,null,null,null,null,"ISO 11338-1 /-2",null,null,null,null,null,null,null,null,null,null,null,null,null,null,null,null,null,null,"4.4 Chemical – Production of plant protection products or of biocides",null,"Input materials - NON-FERROUS FOUNDRIES","Iron foundries - Input material",null,"All foundries - Input material - furnaces","FOUNDRIES candidate BATs - DIFFUSE (FUGITIVE) EMISSIONS TO AIR",null,null,null,null,null,null,null,"PA16","Moulding line 5","Wet flue-gas treatment system",null,null,"Filter dust 4"]
[null,null,null,null,null,null,"Other (specify in additional information)",null,null,null,null,null,"Other (specify in additional information)",null,null,null,null,null,null,null,null,null,null,null,null,null,null,null,null,null,null,"4.5 Chemical – Production of pharmaceutical products","Smitheries Furnace type",null,null,null,"Pig iron","Collection, extraction and treatment of furnace off-gases",null,null,null,null,null,null,null,"PA17","Core-making line 1","Direct cooling",null,null,"Filter dust 5"]
[null,null,null,null,null,null,null,null,null,null,null,null,null,null,null,null,null,null,null,null,null,null,null,null,null,null,null,null,null,null,null,"4.6 Chemical – Production of explosives","Batch type furnace",null,null,null,"Alloying elements","Collection, extraction and treatment of off-gases from metal treatment processes",null,null,null,null,null,null,null,"PA18","Core-making line 2","Wet sand regeneration",null,null,"Filter dust 6"]
[null,null,null,null,null,null,null,null,null,null,null,null,null,null,null,null,null,null,null,null,null,null,null,null,null,null,null,null,null,null,null,"5 Waste management","Continous furnace",null,null,null,"Coke","Collection, extraction and treatment of emissions from  moulding processes",null,null,null,null,null,null,null,"PA19","Core-making line 3","Cupola furnace slag granulation",null,null,"Filter dust 7"]
[null,null,null,null,"Benzene",null,null,"Flow",null,null,null,null,null,null,null,null,null,null,null,null,null,null,null,null,null,null,null,null,null,null,null,"5.1a Disposal or recovery of hazardous waste – Biological treatment","Pusher furnace",null,null,null,"Internal scrap (cast scrap)","Collection, extraction and treatment of emissions from pouring processes and cooling lines",null,null,null,null,null,null,null,"PA20","Core-making line 4","Surface run-off from storage or other areas",null,null,"Filter dust 8"]
[null,null,null,null,"CEN/TS 13649",null,null,"EN ISO 16911",null,null,null,null,null,null,null,null,null,null,null,null,null,null,null,null,null,null,null,null,null,null,null,"5.1b Disposal or recovery of hazardous waste – Physico-chemical treatment","Walking beam furnace",null,null,"Lamellar iron (grey iron)","External scrap","Collection, extraction and treatment of emissions from finishing processes",null,null,null,null,null,null,null,null,"Coating line 1","Other directly associated activity (specify in \"additional information\")",null,null,"Other (specify in additional information)"]
[null,null,null,null,"Other (specify in additional information)",null,null,"Other (specify in additional information)",null,null,null,null,null,null,null,null,null,null,null,null,null,null,null,null,null,null,null,null,null,null,null,"5.1c Disposal or recovery of hazardous waste – Blending or mixing","Rotary hearth furnace","Other (specify in additional information)",null,"Nodular iron (ductile iron)","Deoxidation agents","Minimising emissions from quenching baths (either by extraction and treatment or by using polymer solutions)",null,null,null,null,null,null,null,null,"Coating line 2"]
[null,null,null,null,null,null,null,null,null,null,null,null,null,null,null,null,null,null,null,null,null,null,null,null,null,null,null,null,null,null,null,"5.1d Disposal or recovery of hazardous waste – Repackaging","Other (specify in additional information)",null,null,"Compact graphite iron (malleable iron)","Fluxing agents","Use of clean materials e.g. clean scrap",null,null,null,null,null,null,null,"Associated process for emissions to water","Casting (pouring) machine 1"]
[null,null,null,null,null,null,null,null,null,null,null,null,null,null,null,null,null,null,null,null,null,null,null,null,null,null,null,null,null,null,null,"5.1e Disposal or recovery of hazardous waste – Solvent reclamation/regeneration",null,null,"Other (specify in additional information)","Steel","Slagging agents","Use of emission-free or emission-reduced metarials, e.g. emission-reduced sand binders or additives",null,null,null,null,null,null,null,"PW1","Casting (pouring) machine 2"]
[null,null,null,null,null,null,null,null,null,null,null,null,null,null,null,null,null,null,null,null,null,null,null,null,null,null,null,null,null,null,null,"5.1f Disposal or recovery of hazardous waste – Recycling/reclamation of inorganic materials other than metals or metal compound",null,null,null,"Aluminium","Liquid metal","Minimising the use of substances (material efficiency) e.g. proportion of chemical binders in moulding sand or core sand",null,null,null,null,null,null,null,"PW2","Casting (pouring) machine 3"]
[null,null,null,null,null,null,null,null,null,null,null,null,null,null,null,null,null,null,null,null,null,null,null,null,null,null,null,null,null,null,null,"5.1g Disposal or recovery of hazardous waste – Regeneration of acids or bases","Furnace type - all FOUNDRIES",null,null,"Magnesium alloy","Ingots","Good housekeeping, i.e. ensuring that regular inspections are carried out and up-to-date records are kept",null,null,null,null,null,null,null,"PW3","Cooling line 1"]
[null,null,null,null,null,null,null,null,null,null,null,null,null,null,null,null,null,null,null,null,null,null,null,null,null,null,null,null,null,null,null,"5.1h Disposal or recovery of hazardous waste – Recovery of components used for pollution abatement","Cupola (hot blast) HBC furnace",null,null,"Copper alloy (specify the exact type of Cu alloy in additional information)","Castings","General techniques related to storage, handling, transfer  and cleaning (see SF BREF section 4.5.1.1)",null,null,null,null,null,null,null,null,"Cooling line 2"]
[null,null,null,null,null,null,null,null,null,null,null,null,null,null,null,null,null,null,null,null,null,null,null,null,null,null,null,null,null,null,null,"5.1i Disposal or recovery of hazardous waste – Recovery of components from catalysts","Cupola (cold blast) CBC furnace",null,null,"Zinc alloy","Other (specify in additional info on furnace)","Other (specify in additional information)",null,null,null,null,null,null,null,null,"Cooling line 3"]
[null,null,null,null,null,null,null,null,null,null,null,null,null,null,null,null,null,null,null,null,null,null,null,null,null,null,null,null,null,null,null,"5.1j Disposal or recovery of hazardous waste – Oil re-refining or other reuses of oil","Crucible",null,null,"Lead ",null,null,null,null,null,null,null,null,null,null,"Shake-out line 1"]
[null,null,null,null,null,null,null,null,null,null,null,null,null,null,null,null,null,null,null,null,null,null,null,null,null,null,null,null,null,null,null,"5.1k Waste – Disposal or recovery of hazardous waste – Surface impoundment","Electric Arc - EAF - acidic lined",null,null,"Superalloys (specify in additional information)",null,null,null,null,null,null,null,null,null,null,"Shake-out line 2"]
[null,null,null,null,null,null,null,null,null,null,null,null,null,null,null,null,null,null,null,null,null,null,null,null,null,null,null,null,null,null,null,"5.2a Disposal or recovery of non-hazardous waste - Incineration or co-incineration","Electric Arc - EAF - basic lined",null,null,"Other (specify in additional information)",null,null,null,null,null,null,null,null,null,null,"Shake-out line 3"]
[null,null,null,null,null,null,null,null,null,null,null,null,null,null,null,null,null,null,null,null,null,null,null,null,null,null,null,null,null,null,null,"5.2b Disposal or recovery of hazardous waste - Incineration or co-incineration","Induction furnace (electric coreless)",null,null,null,null,"EUROSTAT PRODCOM list",null,null,null,null,null,null,null,null,"Sand preparation"]
[null,null,null,null,null,null,null,null,null,null,null,null,null,null,null,null,null,null,null,null,null,null,null,null,null,null,null,null,null,null,null,"5.3a(i) Disposal of non-hazardous waste - Biological treatment","Medium frequency crucible induction",null,null,null,null,"24.51 Casting of iron  ▼",null,null,null,null,null,null,null,null,"Secondary sand reclamation"]
[null,null,null,null,null,null,null,null,null,null,null,null,null,null,null,null,null,null,null,null,null,null,null,null,null,null,null,null,null,null,null,"5.3a(ii) Disposal of non-hazardous waste - Physico-chemical treatment","Net/mains frequency crucible induction ",null,null,null,null,"24.51.11 Casting services of malleable cast iron ",null,null,null,null,null,null,null,null,"Finishing"]
[null,null,null,null,null,null,null,null,null,null,null,null,null,null,null,null,null,null,null,null,null,null,null,null,null,null,null,null,null,null,null,"5.3a(iii) Disposal of non-hazardous waste - Pre-treatment for incineration or co-incineration","Radiant roof furnace",null,null,null,null,"24.51.11.10 Malleable iron castings for land vehicles, piston engines and other machinery and mechanical appliances ",null,null,null,null,null,null,null,null,"Storage of chemicals / raw materials"]
[null,null,null,null,null,null,null,null,null,null,null,null,null,null,null,null,null,null,null,null,null,null,null,null,null,null,null,null,null,null,null,"5.3a(iv) Disposal of non-hazardous waste - Treatment of […] ashes","Resistance",null,null,null,null,"24.51.12 Casting services of spheroidal cast iron ",null,null,null,null,null,null,null,null,"Preparation /  mixing of chemicals / raw materials used"]
[null,null,null,null,null,null,null,null,null,null,null,null,null,null,null,null,null,null,null,null,null,null,null,null,null,null,null,null,null,null,null,"5.3a(v) Disposal of non-hazardous waste - Treament in shredders of metal waste, including WEEE and EoLVs","Reverberatory (hearth) ",null,null,null,null,"24.51.12.10 Parts of land vehicles (nodular iron castings) ",null,null,null,null,null,null,null,null,"Other directly associated activity (specify in \"additional information\")"]
[null,null,null,null,null,null,null,null,null,null,null,null,null,null,null,null,null,null,null,null,null,null,null,null,null,null,null,null,null,null,null,"5.3b(i) Recovery, or a mix of recovery and disposal, of non-hazardous waste - Biological treatment","Rotary furnace",null,null,null,null,"24.51.12.20 Ductile iron castings for transmission shafts, crankshafts, camshafts, cranks, bearing housings and plain shaft bearings (excluding for bearing housings incorporating ball or roller bearings) "]
[null,null,null,null,null,null,null,null,null,null,null,null,null,null,null,null,null,null,null,null,null,null,null,null,null,null,null,null,null,null,null,"5.3b(ii) Recovery, or a mix of recovery and disposal, of non-hazardous waste - Pre-treatment for incineration or co-incineration","Shaft ",null,null,null,null,"24.51.12.40 Other parts of piston engines and mechanical engineering (nodular iron castings) "]
[null,null,null,null,null,null,null,null,null,null,null,null,null,null,null,null,null,null,null,null,null,null,null,null,null,null,null,null,null,null,null,"5.3b(iii) Recovery, or a mix of recovery and disposal, of non-hazardous waste - Treatment of […] ashes","Other (specify in additional information)",null,null,null,null,"24.51.12.50 Ductile iron castings for machinery and mechanical appliances excluding for piston engines "]
[null,null,null,null,null,null,null,null,null,null,null,null,null,null,null,null,null,null,null,null,null,null,null,null,null,null,null,null,null,null,null,"5.3b(iv) Recovery, or a mix of recovery and disposal, of non-hazardous waste - Treament in shredders of metal waste, including WEEE and EoLVs",null,null,null,null,null,"24.51.12.90 Ductile iron castings for locomotives/rolling stock/parts, used other than in land vehicles, bearing housings, plain shaft bearings, piston engines, gearing, pulleys, clutches, machinery "]
[null,null,null,null,null,null,null,null,null,null,null,null,null,null,null,null,null,null,null,null,null,null,null,null,null,null,null,null,null,null,null,"5.4 Waste – Landfills",null,null,null,null,null,"24.51.13 Casting services of grey cast iron"]
[null,null,null,null,null,null,null,null,null,null,null,null,null,null,null,null,null,null,null,null,null,null,null,null,null,null,null,null,null,null,null,"5.5 Temporary storage of hazardous waste",null,null,null,null,null,"24.51.13.10 Grey iron castings for land vehicles (excluding for locomotives or rolling stock, construction industry vehicles) ","    ",null,null,null,null,null,"    "]
[null,null,null,null,null,null,null,null,null,null,null,null,null,null,null,null,null,null,null,null,null,null,null,null,null,null,null,null,null,null,null,"5.6 Waste – Underground storage of hazardous waste",null,null,null,null,null,"24.51.13.20 Grey iron castings for transmission shafts, crankshafts, camshafts, cranks, bearing housings and plain shaft bearings (excluding bearing housings incorporating ball or roller bearings) ",null,null,null,null,null,null,"    "]
[null,null,null,null,null,null,null,null,null,null,null,null,null,null,null,null,null,null,null,null,null,null,null,null,null,null,null,null,null,null,null,"6 Other activities",null,null,null,null,null,"24.51.13.40 Other parts of piston engines and mechanical engineering (cast iron: not ductile) ","    ",null,null,null,null,null,"    "]
[null,null,null,null,null,null,null,null,null,null,null,null,null,null,null,null,null,null,null,null,null,null,null,null,null,null,null,null,null,null,null,"6.1a Other – Production of pulp from timber or other fibrous materials",null,null,null,null,null,"24.51.13.50 Grey iron castings for machinery and mechanical appliances excluding for piston engines",null,null,null,null,null,null,"    "]
[null,null,null,null,null,null,null,null,null,null,null,null,null,null,null,null,null,null,null,null,null,null,null,null,null,null,null,null,null,null,null,"6.1b Other – Production of paper or card board",null,null,"Certification",null,null,"24.51.13.90 Grey iron castings for locomotives/rolling stock/parts, used other than in land vehicles, bearing housings, plain shaft bearings, piston engines, gearing, pulleys, clutches, machinery ",null,null,null,null,null,null,"    "]
[null,null,null,null,null,null,null,null,null,null,null,null,null,null,null,null,null,null,null,null,null,null,null,null,null,null,null,null,null,null,null,"6.1c Other – Production of wood-based panels",null,null,"EMAS",null,null,"24.52 Casting of steel  ▼"]
[null,null,null,null,null,null,null,null,null,null,null,null,null,null,null,null,null,null,null,null,null,null,null,null,null,null,null,null,null,null,null,"6.3 Other – Tanning of hides and skins",null,null,"ISO 14001",null,null,"24.52.10 Casting services of steel "]
[null,null,null,null,null,null,null,null,null,null,null,null,null,null,null,null,null,null,null,null,null,null,null,null,null,null,null,null,null,null,null,"6.4a Other – Operating slaughterhouses",null,null,"ISO 18001",null,null,"24.52.10.10 Steel castings for land vehicles excluding for locomotives or rolling stock, construction industry vehicles ",null,null,null,null,null,null,"    "]
[null,null,null,null,null,null,null,null,null,null,null,null,null,null,null,null,null,null,null,null,null,null,null,null,null,null,null,null,null,null,null,"6.4b Other – Treatment and processing of the raw materials intended for the production of food",null,null,"ISO 50001",null,null,"24.52.10.30 Steel castings for bearing housings and plain shaft bearings (excluding for bearing housings incorporating ball or roller bearings) ",null,null,null,null,null,"    ","    "]
[null,null,null,null,null,null,null,null,null,null,null,null,null,null,null,null,null,null,null,null,null,null,null,null,null,null,null,null,null,null,null,"6.4c Other – Treatment and processing of milk",null,null,"ISO 9001",null,null,"24.52.10.40 Other parts of piston engines and mechanical engineering ",null,null,null,null,null,null,"    "]
[null,null,null,null,null,null,null,null,null,null,null,null,null,null,null,null,null,null,null,null,null,null,null,null,null,null,null,null,null,null,null,"6.5 Other – Disposal or recycling of animal carcases or animal waste",null,null,"Other (specify in additional information)",null,null,"24.52.10.50 Steel castings for machinery and mechanical appliances excluding piston engines, turbojets, turboprops, other gas turbines, lifting or handling equipment, construction industry machinery/vehicles ",null,null,null,null,null,null,"    "]
[null,null,null,null,null,null,null,null,null,null,null,null,null,null,null,null,null,null,null,null,null,null,null,null,null,null,null,null,null,null,null,"6.6a Other – Intensive rearing of poultry or pigs (> 40 000 places for poultry)",null,null,null,null,null,"24.52.10.90 Steel castings for locomotives/rolling stock/parts, use other than in land vehicles, bearing housings, plain shaft bearings, piston engines, gearing, pulleys, clutches, machinery ",null,null,null,null,null,null,"    "]
[null,null,null,null,null,null,null,null,null,null,null,null,null,null,null,null,null,null,null,null,null,null,null,null,null,null,null,null,null,null,null,"6.6b Other – Intensive rearing of poultry or pigs (>2 000 places for production pigs over 30 kg)",null,null,null,null,null,"24.53 Casting of light metals  ▼"]
[null,null,null,null,null,null,null,null,null,null,null,null,null,null,null,null,null,null,null,null,null,null,null,null,null,null,null,null,null,null,null,"6.6c Other – Intensive rearing of poultry or pigs (>750 places for sows)",null,null,null,null,null,"24.53.10 Casting services of light metals "]
[null,null,null,null,null,null,null,null,null,null,null,null,null,null,null,null,null,null,null,null,null,null,null,null,null,null,null,null,null,null,null,"6.7 Other – Surface treatment of substances, objects or products using organic solvents",null,null,null,null,null,"24.53.10.10 Light metal castings for land vehicles excluding for locomotives or rolling stock, construction industry vehicles ",null,null,null,null,null,null,"    "]
[null,null,null,null,null,null,null,null,null,null,null,null,null,null,null,null,null,null,null,null,null,null,null,null,null,null,null,null,null,null,null,"6.8 Other – Production of carbon or electrographite",null,null,null,null,null,"24.53.10.20 Light metal castings for transmission shafts, crankshafts, camshafts, cranks, bearing housings and plain shaft bearings (excluding for bearing housings incorporating ball or roller bearings) ",null,null,null,null,null,"    ","    "]
[null,null,null,null,null,null,null,null,null,null,null,null,null,null,null,null,null,null,null,null,null,null,null,null,null,null,null,null,null,null,null,"6.9 Other – Capture of CO2 streams",null,null,null,null,null,"24.53.10.40 Other parts of piston engines and mechanical engineering ",null,null,null,null,null,null,"    "]
[null,null,null,null,null,null,null,null,null,null,null,null,null,null,null,null,null,null,null,null,null,null,null,null,null,null,null,null,null,null,null,"6.10 Other – Preservation of wood and wood products with chemicals",null,null,null,null,null,"24.53.10.50 Light metal castings for machinery and mechanical appliances excluding for piston engines, turbojets, gas turbines, lifting or handling equipment, construction industry machinery/vehicles ",null,null,null,null,null,null,"    "]
[null,null,null,null,null,null,null,null,null,null,null,null,null,null,null,null,null,null,null,null,null,null,null,null,null,null,null,null,null,null,null,null,null,null,null,null,null,"24.53.10.90 Parts for other utilisation",null,null,null,null,null,null,"    "]
[null,null,null,null,null,null,null,null,null,null,null,null,null,null,null,null,null,null,null,null,null,null,null,null,null,null,null,null,null,null,null,null,null,null,null,null,null,"24.54 Casting of other non-ferrous metals  ▼"]
[null,null,null,null,null,null,null,null,null,null,null,null,null,null,null,null,null,null,null,null,null,null,null,null,null,null,null,null,null,null,null,null,null,null,null,null,null,"24.54.10 Casting services of other non-ferrous metals "]
[null,null,null,null,null,null,null,null,null,null,null,null,null,null,null,null,null,null,null,null,null,null,null,null,null,null,null,null,null,null,null,null,null,null,null,null,null,"24.54.10.10 Non-ferrous cast parts for land vehicles excluding locomotives/ rolling stock, straddle carriers, works trucks fitted with lifting or handling equipment, agricultural/road rollers, bulldozers etc. "]
[null,null,null,null,null,null,null,null,null,null,null,null,null,null,null,null,null,null,null,null,null,null,null,null,null,null,null,null,null,null,null,null,null,null,null,null,null,"24.54.10.20 Non-ferrous cast parts, other than of light metals, for transmission shafts, crankshafts, camshafts, cranks, bearing housings and plain shaft bearings (excluding for bearing housings incorporating ball or roller bearings) "]
[null,null,null,null,null,null,null,null,null,null,null,null,null,null,null,null,null,null,null,null,null,null,null,null,null,null,null,null,null,null,null,null,null,null,null,null,null,"24.54.10.40 Other parts of piston engines and mechanical engineering "]
[null,null,null,null,null,null,null,null,null,null,null,null,null,null,null,null,null,null,null,null,null,null,null,null,null,null,null,null,null,null,null,null,null,null,null,null,null,"24.54.10.50 Non-ferrous cast parts, other than of light metals, for machinery and mechanical appliances (excluding for piston engines) "]
[null,null,null,null,null,null,null,null,null,null,null,null,null,null,null,null,null,null,null,null,null,null,null,null,null,null,null,null,null,null,null,null,null,null,null,null,null,"24.54.10.90 Parts for other utilisation "]